Workbook

Sheet HU sit out RS data
A1: Red star poker: sitout games analysis (HU 0,5$ turbo)
A3: Hand | B3: Opp hand | C3: SB/BB | D3: BB pts | E3: Stack | F3: Act PR | G3: Act PF | H3: Lead flop | I3: Lead turn | J3: Lead river | K3: Grow turn | L3: Grow river | M3: Opp hit flop | N3: Opp hit 2p+ | O3: Opp hit FD | P3: Better hand | Q3: Hand type | R3: Hand type cashe | S3: Hand type opp | T3: Hand type opp cashe | U3: Usefull river | V3: Useless river | W3: Trap river | X3: Dominate | Y3: Under dom | Z3: Under dom risk | AA3: Better hand chance | AB3: Chance to win | AC3: Sit out | AD3: Date | AE3: Game | AF3: Opp
A4: Q6o | C4: SB | D4: 20 | E4: 0.5 | F4: f | R4: other-o | Z4: 0.1273469388 | AA4: 0.6048979592 | AC4: 0 | AD4: 2022-07-10 | AE4: 1 | AF4: Cloudblank789
A5: K4o | C5: BB | D5: 20 | E5: 0.5 | F5: f | R5: Kxo | Z5: 0.1371428571 | AA5: 0.7126530612 | AC5: 0 | AD5: 2022-07-10 | AE5: 1 | AF5: Cloudblank789
A6: A5o | C6: SB | D6: 20 | E6: 0.5 | F6: l+f | R6: Axo | Z6: 0.1224489796 | AA6: 0.8628571429 | AC6: 0 | AD6: 2022-07-10 | AE6: 1 | AF6: Cloudblank789
A7: K8o | C7: BB | D7: 20 | E7: 0.5 | F7: f | R7: J8o-KQo | Z7: 0.08816326531 | AA7: 0.7518367347 | AC7: 0 | AD7: 2022-07-10 | AE7: 1 | AF7: Cloudblank789
A8: A7o | B8: K2o | C8: SB | D8: 20 | E8: 0.45 | F8: l | G8: c/c/c | H8: 1 | I8: 1 | J8: 1 | K8: 0 | L8: 1 | M8: 0 | N8: 0 | O8: 0 | P8: 1 | Q8: 0 | R8: Axo | S8: 0 | T8: Kxo | U8: 0 | V8: 1 | W8: 0 | X8: 0 | Y8: 0 | Z8: 0.09306122449 | AA8: 0.8824489796 | AB8: 0.64 | AC8: 1 | AD8: 2022-07-10 | AE8: 1 | AF8: Cloudblank789
A9: J4o | C9: BB | D9: 20 | E9: 0.5 | Q9: 0 | R9: other-o | Z9: 0.1567346939 | AA9: 0.4710204082 | AC9: 1 | AD9: 2022-07-10 | AE9: 1 | AF9: Cloudblank789
A10: Qjo | B10: Qto | C10: SB | D10: 20 | E10: 0.5 | F10: l | G10: c/c/c | H10: 1 | I10: 1 | J10: 1 | K10: 0 | L10: 0 | M10: 0 | N10: 0 | O10: 0 | P10: 1 | Q10: 0 | R10: J8o-KQo | S10: 0 | T10: J8o-KQo | U10: 0 | V10: 0 | W10: 0 | X10: 1 | Y10: 0 | Z10: 0.05387755102 | AA10: 0.653877551 | AB10: 0.76 | AC10: 1 | AD10: 2022-07-10 | AE10: 1 | AF10: Cloudblank789
A11: 88 | C11: BB | D11: 20 | E11: 0.5 | Q11: 1 | R11: 88+ | Z11: 0.0293877551 | AA11: 0.9706122449 | AC11: 1 | AD11: 2022-07-10 | AE11: 1 | AF11: Cloudblank789
A12: Kjo | C12: SB | D12: 20 | E12: 0.5 | F12: l+f | R12: J8o-KQo | Z12: 0.03428571429 | AA12: 0.7812244898 | AC12: 0 | AD12: 2022-07-10 | AE12: 1 | AF12: Cloudblank789
A13: 64o | C13: BB | D13: 20 | E13: 0.5 | F13: f | R13: 65o | Z13: 0.2057142857 | AA13: 0.09551020408 | AC13: 0 | AD13: 2022-07-10 | AE13: 1 | AF13: Cloudblank789
A14: K4o | C14: SB | D14: 20 | E14: 0.5 | F14: l+f | R14: Kxo | Z14: 0.1371428571 | AA14: 0.7126530612 | AC14: 0 | AD14: 2022-07-10 | AE14: 1 | AF14: Cloudblank789
A15: 98s | C15: BB | D15: 20 | E15: 0.45 | F15: f | R15: 97s-T9s | Z15: 0.1273469388 | AA15: 0.3208163265 | AC15: 0 | AD15: 2022-07-10 | AE15: 1 | AF15: Cloudblank789
A16: QQ | B16: J6o | C16: SB | D16: 20 | E16: 0.45 | F16: l+cl AI | H16: 1 | I16: 1 | J16: 1 | K16: 0 | L16: 1 | M16: 0 | N16: 0 | O16: 0 | P16: 1 | R16: 88+ | T16: other-o | X16: 1 | Y16: 0 | Z16: 0.009795918367 | AA16: 0.9902040816 | AB16: 0.87 | AC16: 0 | AD16: 2022-07-10 | AE16: 1 | AF16: Cloudblank789
A17: K9o | C17: BB | D17: 20 | E17: 0.95 | Q17: 0 | R17: J8o-KQo | Z17: 0.07346938776 | AA17: 0.7616326531 | AC17: 1 | AD17: 2022-07-10 | AE17: 1 | AF17: Cloudblank789
A18: Q9s | B18: 84s | C18: SB | D18: 20 | E18: 0.95 | F18: l | G18: c/c/c | H18: 1 | I18: 0 | J18: 0 | K18: 0 | L18: 0 | M18: 0 | N18: 0 | O18: 0 | P18: 1 | Q18: 0 | R18: J8s-KQs | S18: 0 | T18: other-s | U18: 0 | V18: 0 | W18: 0 | X18: 0 | Y18: 0 | Z18: 0.08326530612 | AA18: 0.6342857143 | AB18: 0.65 | AC18: 1 | AD18: 2022-07-10 | AE18: 1 | AF18: Cloudblank789
A19: T8o | C19: BB | D19: 20 | E19: 0.95 | Q19: 0 | R19: 97o-T9o | Z19: 0.1175510204 | AA19: 0.4089795918 | AC19: 1 | AD19: 2022-07-10 | AE19: 1 | AF19: Cloudblank789
A20: 65s | B20: K9o | C20: SB | D20: 20 | E20: 0.95 | F20: l | G20: c/c/c | H20: 0 | I20: 0 | J20: 0 | K20: 0 | L20: 0 | M20: 1 | N20: 0 | O20: 0 | P20: 0 | Q20: 0 | R20: 65s | S20: 0 | T20: J8o-KQo | U20: 0 | V20: 0 | W20: 0 | X20: 0 | Y20: 0 | Z20: 0.2008163265 | AA20: 0.1053061224 | AB20: 0.42 | AC20: 1 | AD20: 2022-07-10 | AE20: 1 | AF20: Cloudblank789
A21: 88 | C21: BB | D21: 20 | E21: 0.95 | Q21: 1 | R21: 88+ | Z21: 0.0293877551 | AA21: 0.9706122449 | AC21: 1 | AD21: 2022-07-10 | AE21: 1 | AF21: Cloudblank789
A22: K5s | B22: 84o | C22: SB | D22: 20 | E22: 0.95 | F22: l | G22: c/c/c | H22: 0 | I22: 0 | J22: 0 | K22: 0 | L22: 0 | M22: 1 | N22: 1 | O22: 0 | P22: 1 | Q22: 0 | R22: Kxs | S22: 0 | T22: other-o | U22: 0 | V22: 0 | W22: 0 | X22: 0 | Y22: 0 | Z22: 0.132244898 | AA22: 0.7224489796 | AB22: 0.66 | AC22: 1 | AD22: 2022-07-10 | AE22: 1 | AF22: Cloudblank789
A23: A9o | C23: BB | D23: 20 | E23: 0.95 | Q23: 0 | R23: Axo | Z23: 0.06367346939 | AA23: 0.9020408163 | AC23: 1 | AD23: 2022-07-10 | AE23: 1 | AF23: Cloudblank789
A24: A5s | B24: K4o | C24: SB | D24: 20 | E24: 0.95 | F24: l | G24: c/c/c | H24: 1 | I24: 1 | J24: 1 | K24: 0 | L24: 0 | M24: 0 | N24: 0 | O24: 0 | P24: 1 | Q24: 0 | R24: Axs | S24: 0 | T24: Kxo | U24: 0 | V24: 0 | W24: 0 | X24: 0 | Y24: 0 | Z24: 0.1224489796 | AA24: 0.8628571429 | AB24: 0.67 | AC24: 1 | AD24: 2022-07-10 | AE24: 1 | AF24: Cloudblank789
A25: A5o | C25: BB | D25: 20 | E25: 0.95 | Q25: 0 | R25: Axo | Z25: 0.1224489796 | AA25: 0.8628571429 | AC25: 1 | AD25: 2022-07-10 | AE25: 1 | AF25: Cloudblank789
A26: K3s | B26: 82o | C26: SB | D26: 20 | E26: 0.95 | F26: l | G26: c/c/c | H26: 1 | I26: 1 | J26: 1 | K26: 0 | L26: 0 | M26: 0 | N26: 0 | O26: 0 | P26: 1 | Q26: 0 | R26: Kxs | S26: 0 | T26: other-o | U26: 0 | V26: 0 | W26: 0 | X26: 0 | Y26: 0 | Z26: 0.1420408163 | AA26: 0.7028571429 | AB26: 0.66 | AC26: 1 | AD26: 2022-07-10 | AE26: 1 | AF26: Cloudblank789
A27: T3o | C27: BB | D27: 20 | E27: 0.95 | Q27: 0 | R27: other-o | Z27: 0.1714285714 | AA27: 0.36 | AC27: 1 | AD27: 2022-07-10 | AE27: 1 | AF27: Cloudblank789
A28: Q8o | B28: Q5o | C28: SB | D28: 20 | E28: 0.95 | F28: l | G28: c/c/c | H28: 1 | I28: 1 | J28: 1 | K28: 0 | L28: 1 | M28: 1 | N28: 0 | O28: 0 | P28: 1 | Q28: 0 | R28: J8o-KQo | S28: 0 | T28: other-o | U28: 0 | V28: 1 | W28: 0 | X28: 1 | Y28: 0 | Z28: 0.09795918367 | AA28: 0.6244897959 | AB28: 0.76 | AC28: 1 | AD28: 2022-07-10 | AE28: 1 | AF28: Cloudblank789
A29: A7o | C29: BB | D29: 20 | E29: 0.95 | Q29: 0 | R29: Axo | Z29: 0.09306122449 | AA29: 0.8824489796 | AC29: 1 | AD29: 2022-07-10 | AE29: 1 | AF29: Cloudblank789
A30: 55 | B30: K3o | C30: SB | D30: 30 | E30: 0.95 | F30: l | G30: c/c/c | H30: 0 | I30: 0 | J30: 0 | K30: 0 | L30: 0 | M30: 1 | N30: 1 | O30: 0 | P30: 1 | Q30: 0 | R30: 22+ | S30: 0 | T30: Kxo | U30: 0 | V30: 0 | W30: 0 | X30: 1 | Y30: 0 | Z30: 0.04408163265 | AA30: 0.9559183673 | AB30: 0.71 | AC30: 1 | AD30: 2022-07-10 | AE30: 1 | AF30: Cloudblank789
A31: T6o | C31: BB | D31: 30 | E31: 0.95 | Q31: 0 | R31: other-o | Z31: 0.1469387755 | AA31: 0.3893877551 | AC31: 1 | AD31: 2022-07-10 | AE31: 1 | AF31: Cloudblank789
A32: J5o | B32: A2o | C32: SB | D32: 30 | E32: 0.95 | F32: l | G32: c/c/c | H32: 0 | I32: 0 | J32: 0 | K32: 0 | L32: 0 | M32: 1 | N32: 0 | O32: 0 | P32: 0 | Q32: 0 | R32: other-o | S32: 0 | T32: Axo | U32: 0 | V32: 0 | W32: 0 | X32: 0 | Y32: 0 | Z32: 0.1518367347 | AA32: 0.4808163265 | AB32: 0.4 | AC32: 1 | AD32: 2022-07-10 | AE32: 1 | AF32: Cloudblank789
A33: Q7s | C33: BB | D33: 30 | E33: 0.95 | Q33: 0 | R33: other-s | Z33: 0.1126530612 | AA33: 0.6146938776 | AC33: 1 | AD33: 2022-07-10 | AE33: 1 | AF33: Cloudblank789
A34: Qjo | B34: J9o | C34: SB | D34: 30 | E34: 0.95 | F34: l | G34: c/c/c | H34: 1 | I34: 1 | J34: 1 | K34: 0 | L34: 0 | M34: 0 | N34: 0 | O34: 0 | P34: 1 | Q34: 0 | R34: J8o-KQo | S34: 0 | T34: J8o-KQo | U34: 0 | V34: 0 | W34: 0 | X34: 1 | Y34: 0 | Z34: 0.05387755102 | AA34: 0.653877551 | AB34: 0.76 | AC34: 1 | AD34: 2022-07-10 | AE34: 1 | AF34: Cloudblank789
A35: 74o | C35: BB | D35: 30 | E35: 0.95 | Q35: 0 | R35: other-o | Z35: 0.1959183673 | AA35: 0.1444897959 | AC35: 1 | AD35: 2022-07-10 | AE35: 1 | AF35: Cloudblank789
A36: 83o | B36: 64o | C36: SB | D36: 30 | E36: 0.95 | F36: l | G36: c/c/c | H36: 0 | I36: 1 | J36: 1 | K36: 1 | L36: 0 | M36: 1 | N36: 0 | O36: 0 | P36: 1 | Q36: 0 | R36: other-o | S36: 0 | T36: 65o | U36: 0 | V36: 0 | W36: 0 | X36: 0 | Y36: 0 | Z36: 0.1910204082 | AA36: 0.1967346939 | AB36: 0.58 | AC36: 1 | AD36: 2022-07-10 | AE36: 1 | AF36: Cloudblank789
A37: Q8s | C37: BB | D37: 30 | E37: 0.95 | Q37: 0 | R37: J8s-KQs | Z37: 0.09795918367 | AA37: 0.6244897959 | AC37: 1 | AD37: 2022-07-10 | AE37: 1 | AF37: Cloudblank789
A38: Kjo | B38: T9s | C38: SB | D38: 30 | E38: 0.95 | F38: l | G38: c/c/c | H38: 0 | I38: 0 | J38: 0 | K38: 0 | L38: 0 | M38: 1 | N38: 0 | O38: 0 | P38: 1 | Q38: 0 | R38: J8o-KQo | S38: 0 | T38: 97s-T9s | U38: 0 | V38: 0 | W38: 0 | X38: 0 | Y38: 0 | Z38: 0.03428571429 | AA38: 0.7812244898 | AB38: 0.61 | AC38: 1 | AD38: 2022-07-10 | AE38: 1 | AF38: Cloudblank789
A39: K9o | C39: BB | D39: 30 | E39: 0.95 | Q39: 0 | R39: J8o-KQo | Z39: 0.07346938776 | AA39: 0.7616326531 | AC39: 1 | AD39: 2022-07-10 | AE39: 1 | AF39: Cloudblank789
A40: 96s | B40: 75o | C40: SB | D40: 30 | E40: 0.95 | F40: l | G40: c/c/c | H40: 1 | I40: 1 | J40: 0 | K40: 0 | L40: 0 | M40: 0 | N40: 0 | O40: 0 | P40: 1 | Q40: 0 | R40: other-s | S40: 0 | T40: 65o | U40: 0 | V40: 0 | W40: 0 | X40: 0 | Y40: 0 | Z40: 0.1567346939 | AA40: 0.3012244898 | AB40: 0.65 | AC40: 1 | AD40: 2022-07-10 | AE40: 1 | AF40: Cloudblank789
A41: A6o | C41: BB | D41: 30 | E41: 0.95 | Q41: 0 | R41: Axo | Z41: 0.107755102 | AA41: 0.8726530612 | AC41: 1 | AD41: 2022-07-10 | AE41: 1 | AF41: Cloudblank789
A42: 66 | B42: J5o | C42: SB | D42: 30 | E42: 0.95 | F42: l | G42: c/c/c | H42: 0 | I42: 0 | J42: 0 | K42: 0 | L42: 0 | M42: 1 | N42: 0 | O42: 0 | P42: 1 | Q42: 0 | R42: 22+ | S42: 0 | T42: other-o | U42: 0 | V42: 0 | W42: 0 | X42: 1 | Y42: 0 | Z42: 0.03918367347 | AA42: 0.9608163265 | AB42: 0.7 | AC42: 1 | AD42: 2022-07-10 | AE42: 1 | AF42: Cloudblank789
A43: 42o | C43: BB | D43: 30 | E43: 0.95 | Q43: 0 | R43: other-o | Z43: 0.2351020408 | AA43: 0.01714285714 | AC43: 1 | AD43: 2022-07-10 | AE43: 1 | AF43: Cloudblank789
A44: 87s | B44: A9o | C44: SB | D44: 30 | E44: 0.95 | F44: l | G44: c/c/c | H44: 0 | I44: 1 | J44: 0 | K44: 1 | L44: 0 | M44: 0 | N44: 0 | O44: 0 | P44: 0 | Q44: 0 | R44: 65s | S44: 0 | T44: Axo | U44: 0 | V44: 0 | W44: 0 | X44: 0 | Y44: 0 | Z44: 0.1518367347 | AA44: 0.2359183673 | AB44: 0.42 | AC44: 1 | AD44: 2022-07-10 | AE44: 1 | AF44: Cloudblank789
A45: Ajo | C45: BB | D45: 30 | E45: 0.95 | Q45: 1 | R45: AJ+ | Z45: 0.03428571429 | AA45: 0.9216326531 | AC45: 1 | AD45: 2022-07-10 | AE45: 1 | AF45: Cloudblank789
A46: 63o | B46: A9o | C46: SB | D46: 30 | E46: 0.95 | F46: l | G46: c/c/c | H46: 1 | I46: 1 | J46: 0 | K46: 0 | L46: 0 | M46: 0 | N46: 0 | O46: 0 | P46: 0 | Q46: 0 | R46: other-o | S46: 0 | T46: Axo | U46: 0 | V46: 0 | W46: 0 | X46: 0 | Y46: 0 | Z46: 0.2106122449 | AA46: 0.08571428571 | AB46: 0.36 | AC46: 1 | AD46: 2022-07-10 | AE46: 1 | AF46: Cloudblank789
A47: 85o | C47: BB | D47: 30 | E47: 0.95 | Q47: 0 | R47: other-o | Z47: 0.1812244898 | AA47: 0.2163265306 | AC47: 1 | AD47: 2022-07-10 | AE47: 1 | AF47: Cloudblank789
A48: A9o | B48: Ato | C48: SB | D48: 30 | E48: 0.95 | F48: l | G48: c/c/c | H48: 0 | I48: 0 | J48: 1 | K48: 0 | L48: 0 | M48: 0 | N48: 0 | O48: 0 | P48: 0 | Q48: 0 | R48: Axo | S48: 0 | T48: Axo | U48: 0 | V48: 0 | W48: 0 | X48: 0 | Y48: 1 | Z48: 0.06367346939 | AA48: 0.9020408163 | AB48: 0.33 | AC48: 1 | AD48: 2022-07-10 | AE48: 1 | AF48: Cloudblank789
A49: Q5o | C49: BB | D49: 30 | E49: 0.95 | Q49: 0 | R49: other-o | Z49: 0.1420408163 | AA49: 0.5951020408 | AC49: 1 | AD49: 2022-07-10 | AE49: 1 | AF49: Cloudblank789
A50: 22 | B50: T8o | C50: SB | D50: 30 | E50: 0.95 | F50: l | G50: c/c/c | H50: 0 | I50: 0 | J50: 0 | K50: 0 | L50: 0 | M50: 1 | N50: 0 | O50: 0 | P50: 1 | Q50: 0 | R50: 22+ | S50: 0 | T50: 97o-T9o | U50: 0 | V50: 0 | W50: 0 | X50: 0 | Y50: 0 | Z50: 0.0587755102 | AA50: 0.9412244898 | AB50: 0.51 | AC50: 1 | AD50: 2022-07-10 | AE50: 1 | AF50: Cloudblank789
A51: A9s | C51: BB | D51: 30 | E51: 0.95 | Q51: 0 | R51: Axs | Z51: 0.06367346939 | AA51: 0.9020408163 | AC51: 1 | AD51: 2022-07-10 | AE51: 1 | AF51: Cloudblank789
A52: Q6o | B52: 94o | C52: SB | D52: 30 | E52: 0.95 | F52: l | G52: c/c/c | H52: 1 | I52: 1 | J52: 1 | K52: 0 | L52: 0 | M52: 0 | N52: 0 | O52: 0 | P52: 1 | Q52: 0 | R52: other-o | S52: 0 | T52: other-o | U52: 0 | V52: 0 | W52: 0 | X52: 0 | Y52: 0 | Z52: 0.1273469388 | AA52: 0.6048979592 | AB52: 0.64 | AC52: 1 | AD52: 2022-07-10 | AE52: 1 | AF52: Cloudblank789
A53: 64o | C53: BB | D53: 30 | E53: 0.95 | Q53: 0 | R53: 65o | Z53: 0.2057142857 | AA53: 0.09551020408 | AC53: 1 | AD53: 2022-07-10 | AE53: 1 | AF53: Cloudblank789
A54: 75s | B54: 93o | C54: SB | D54: 30 | E54: 0.95 | F54: l | G54: c/c/c | H54: 0 | I54: 0 | J54: 1 | K54: 0 | L54: 1 | M54: 0 | N54: 0 | O54: 0 | P54: 0 | Q54: 0 | R54: 65s | S54: 0 | T54: other-o | U54: 1 | V54: 0 | W54: 0 | X54: 0 | Y54: 0 | Z54: 0.1910204082 | AA54: 0.1542857143 | AB54: 0.5 | AC54: 1 | AD54: 2022-07-10 | AE54: 1 | AF54: Cloudblank789
A55: Q4o | C55: BB | D55: 30 | E55: 0.95 | Q55: 0 | R55: other-o | Z55: 0.1469387755 | AA55: 0.5853061224 | AC55: 1 | AD55: 2022-07-10 | AE55: 1 | AF55: Cloudblank789
A56: A3o | B56: 52s | C56: SB | D56: 30 | E56: 0.95 | F56: l | G56: c/c/c | H56: 1 | I56: 1 | J56: 0 | K56: 0 | L56: 0 | M56: 0 | N56: 0 | O56: 0 | P56: 1 | Q56: 0 | R56: Axo | S56: 0 | T56: other-s | U56: 0 | V56: 0 | W56: 0 | X56: 0 | Y56: 0 | Z56: 0.132244898 | AA56: 0.8432653061 | AB56: 0.6 | AC56: 1 | AD56: 2022-07-10 | AE56: 1 | AF56: Cloudblank789
A57: A7s | C57: BB | D57: 30 | E57: 0.95 | Q57: 0 | R57: Axs | Z57: 0.09306122449 | AA57: 0.8824489796 | AC57: 1 | AD57: 2022-07-10 | AE57: 1 | AF57: Cloudblank789
A58: 94o | B58: J2o | C58: SB | D58: 30 | E58: 0.95 | F58: l | G58: c/c/c | H58: 1 | I58: 1 | J58: 1 | K58: 0 | L58: 0 | M58: 0 | N58: 0 | O58: 0 | P58: 0 | Q58: 0 | R58: other-o | S58: 0 | T58: other-o | U58: 0 | V58: 0 | W58: 0 | X58: 0 | Y58: 0 | Z58: 0.1763265306 | AA58: 0.2816326531 | AB58: 0.41 | AC58: 1 | AD58: 2022-07-10 | AE58: 1 | AF58: Cloudblank789
A59: A2o | C59: BB | D59: 30 | E59: 0.95 | Q59: 0 | R59: Axo | Z59: 0.1371428571 | AA59: 0.8334693878 | AC59: 1 | AD59: 2022-07-10 | AE59: 1 | AF59: Cloudblank789
A60: 32o | B60: T3o | C60: SB | D60: 30 | E60: 0.95 | F60: l | G60: c/c/c | H60: 0 | I60: 0 | J60: 0 | K60: 0 | L60: 0 | M60: 0 | N60: 0 | O60: 0 | P60: 0 | Q60: 0 | R60: other-o | S60: 0 | T60: other-o | U60: 0 | V60: 0 | W60: 0 | X60: 0 | Y60: 1 | Z60: 0.2351020408 | AA60: 0.007346938776 | AB60: 0.33 | AC60: 1 | AD60: 2022-07-10 | AE60: 1 | AF60: Cloudblank789
A61: 96s | C61: BB | D61: 30 | E61: 0.95 | Q61: 0 | R61: other-s | Z61: 0.1567346939 | AA61: 0.3012244898 | AC61: 1 | AD61: 2022-07-10 | AE61: 1 | AF61: Cloudblank789
A62: 83o | B62: Kjo | C62: SB | D62: 30 | E62: 0.95 | F62: l | G62: c/c/c | H62: 1 | I62: 1 | J62: 1 | K62: 0 | L62: 0 | M62: 0 | N62: 0 | O62: 0 | P62: 0 | Q62: 0 | R62: other-o | S62: 0 | T62: J8o-KQo | U62: 0 | V62: 0 | W62: 0 | X62: 0 | Y62: 0 | Z62: 0.1910204082 | AA62: 0.1967346939 | AB62: 0.33 | AC62: 1 | AD62: 2022-07-10 | AE62: 1 | AF62: Cloudblank789
A63: 97o | C63: BB | D63: 30 | E63: 0.95 | Q63: 0 | R63: 97o-T9o | Z63: 0.1420408163 | AA63: 0.3110204082 | AC63: 1 | AD63: 2022-07-10 | AE63: 1 | AF63: Cloudblank789
A64: K7s | B64: 94o | C64: SB | D64: 30 | E64: 0.95 | F64: AI | H64: 0 | I64: 0 | J64: 0 | K64: 0 | L64: 0 | M64: 1 | N64: 0 | O64: 0 | P64: 1 | Q64: 0 | R64: Kxs | S64: 0 | T64: other-o | X64: 0 | Y64: 0 | Z64: 0.1028571429 | AA64: 0.7420408163 | AB64: 0.67 | AC64: 1 | AD64: 2022-07-10 | AE64: 1 | AF64: Cloudblank789
A65: 82o | B65: T6o | C65: BB | D65: 30 | E65: 0.95 | F65: AI | H65: 0 | I65: 1 | J65: 1 | K65: 1 | L65: 0 | M65: 0 | N65: 0 | O65: 0 | P65: 0 | Q65: 0 | R65: other-o | S65: 0 | T65: other-o | X65: 0 | Y65: 0 | Z65: 0.1959183673 | AA65: 0.1869387755 | AB65: 0.37 | AC65: 1 | AD65: 2022-07-10 | AE65: 1 | AF65: Cloudblank789
A66: K7o | C66: BB | D66: 20 | E66: 0.5 | R66: Kxo | Z66: 0.1028571429 | AA66: 0.7420408163 | AC66: 0 | AD66: 2022-07-11 | AE66: 2 | AF66: Billyconnolly
A67: J9o | C67: SB | D67: 20 | E67: 0.5 | F67: f | R67: J8o-KQo | Z67: 0.09306122449 | AA67: 0.52 | AC67: 0 | AD67: 2022-07-11 | AE67: 2 | AF67: Billyconnolly
A68: A8o | C68: BB | D68: 20 | E68: 0.5 | F68: c | G68: b+cl/c+f | R68: Axo | Z68: 0.07836734694 | AA68: 0.892244898 | AC68: 0 | AD68: 2022-07-11 | AE68: 2 | AF68: Billyconnolly
A69: 77 | C69: SB | D69: 20 | E69: 0.5 | F69: push | Q69: 0 | R69: 22+ | Z69: 0.03428571429 | AA69: 0.9657142857 | AC69: 1 | AD69: 2022-07-11 | AE69: 2 | AF69: Billyconnolly
A70: T8s | C70: BB | D70: 20 | E70: 0.5 | Q70: 0 | R70: 97s-T9s | Z70: 0.1175510204 | AA70: 0.4089795918 | AC70: 1 | AD70: 2022-07-11 | AE70: 2 | AF70: Billyconnolly
A71: Q6o | B71: A7o | C71: SB | D71: 20 | E71: 0.5 | F71: l | G71: c/c/c | H71: 0 | I71: 0 | J71: 0 | K71: 0 | L71: 1 | M71: 0 | N71: 0 | O71: 0 | P71: 0 | Q71: 0 | R71: other-o | S71: 0 | T71: Axo | U71: 0 | V71: 0 | W71: 1 | X71: 0 | Y71: 0 | Z71: 0.1273469388 | AA71: 0.6048979592 | AB71: 0.37 | AC71: 1 | AD71: 2022-07-11 | AE71: 2 | AF71: Billyconnolly
A72: 72o | C72: BB | D72: 20 | E72: 0.5 | Q72: 0 | R72: other-o | Z72: 0.2057142857 | AA72: 0.1248979592 | AC72: 1 | AD72: 2022-07-11 | AE72: 2 | AF72: Billyconnolly
A73: K3o | B73: Ajs | C73: SB | D73: 20 | E73: 0.5 | F73: l | G73: c/c/c | H73: 0 | I73: 0 | J73: 1 | K73: 0 | L73: 1 | M73: 0 | N73: 0 | O73: 0 | P73: 0 | Q73: 0 | R73: Kxo | S73: 1 | T73: AJ+ | U73: 1 | V73: 0 | W73: 0 | X73: 0 | Y73: 0 | Z73: 0.1420408163 | AA73: 0.7028571429 | AB73: 0.33 | AC73: 1 | AD73: 2022-07-11 | AE73: 2 | AF73: Billyconnolly
A74: Qjs | C74: BB | D74: 20 | E74: 0.5 | Q74: 0 | R74: J8s-KQs | Z74: 0.05387755102 | AA74: 0.653877551 | AC74: 1 | AD74: 2022-07-11 | AE74: 2 | AF74: Billyconnolly
A75: Ajo | B75: 65s | C75: SB | D75: 20 | E75: 0.5 | F75: l | G75: c/c/c | H75: 1 | I75: 1 | J75: 1 | K75: 1 | L75: 0 | M75: 0 | N75: 0 | O75: 0 | P75: 1 | Q75: 1 | R75: AJ+ | S75: 0 | T75: 65s | U75: 0 | V75: 0 | W75: 0 | X75: 0 | Y75: 0 | Z75: 0.03428571429 | AA75: 0.9216326531 | AB75: 0.58 | AC75: 1 | AD75: 2022-07-11 | AE75: 2 | AF75: Billyconnolly
A76: Q6o | C76: BB | D76: 20 | E76: 0.5 | Q76: 0 | R76: other-o | Z76: 0.1273469388 | AA76: 0.6048979592 | AC76: 1 | AD76: 2022-07-11 | AE76: 2 | AF76: Billyconnolly
A77: Q9o | B77: 65o | C77: SB | D77: 20 | E77: 0.5 | F77: l | G77: c/c/c | H77: 0 | I77: 0 | J77: 0 | K77: 0 | L77: 0 | M77: 1 | N77: 0 | O77: 0 | P77: 1 | Q77: 0 | R77: J8o-KQo | S77: 0 | T77: 65o | U77: 0 | V77: 0 | W77: 0 | X77: 0 | Y77: 0 | Z77: 0.08326530612 | AA77: 0.6342857143 | AB77: 0.63 | AC77: 1 | AD77: 2022-07-11 | AE77: 2 | AF77: Billyconnolly
A78: 66 | C78: BB | D78: 20 | E78: 0.5 | Q78: 0 | R78: 22+ | Z78: 0.03918367347 | AA78: 0.9608163265 | AC78: 1 | AD78: 2022-07-11 | AE78: 2 | AF78: Billyconnolly
A79: 43o | B79: 74o | C79: SB | D79: 20 | E79: 0.5 | F79: l | G79: c/c/c | H79: 0 | I79: 0 | J79: 1 | K79: 0 | L79: 1 | M79: 0 | N79: 0 | O79: 0 | P79: 0 | Q79: 0 | R79: other-o | S79: 0 | T79: other-o | U79: 1 | V79: 0 | W79: 0 | X79: 0 | Y79: 1 | Z79: 0.2302040816 | AA79: 0.02693877551 | AB79: 0.44 | AC79: 1 | AD79: 2022-07-11 | AE79: 2 | AF79: Billyconnolly
A80: K9o | C80: BB | D80: 20 | E80: 0.5 | Q80: 0 | R80: J8o-KQo | Z80: 0.07346938776 | AA80: 0.7616326531 | AC80: 1 | AD80: 2022-07-11 | AE80: 2 | AF80: Billyconnolly
A81: 94o | B81: KK | C81: SB | D81: 20 | E81: 0.5 | F81: l | G81: c/c/c | H81: 0 | I81: 0 | J81: 0 | K81: 0 | L81: 1 | M81: 0 | N81: 0 | O81: 0 | P81: 0 | Q81: 0 | R81: other-o | S81: 1 | T81: 88+ | U81: 0 | V81: 0 | W81: 1 | X81: 0 | Y81: 1 | Z81: 0.1763265306 | AA81: 0.2816326531 | AB81: 0.13 | AC81: 1 | AD81: 2022-07-11 | AE81: 2 | AF81: Billyconnolly
A82: T2o | C82: BB | D82: 20 | E82: 0.5 | Q82: 0 | R82: other-o | Z82: 0.1763265306 | AA82: 0.3502040816 | AC82: 1 | AD82: 2022-07-11 | AE82: 2 | AF82: Billyconnolly
A83: T6s | B83: 98o | C83: SB | D83: 20 | E83: 0.5 | F83: l | G83: c/c/c | H83: 1 | I83: 1 | J83: 0 | K83: 0 | L83: 1 | M83: 0 | N83: 0 | O83: 0 | P83: 1 | Q83: 0 | R83: other-s | S83: 0 | T83: 97o-T9o | U83: 0 | V83: 0 | W83: 1 | X83: 0 | Y83: 0 | Z83: 0.1469387755 | AA83: 0.3893877551 | AB83: 0.59 | AC83: 1 | AD83: 2022-07-11 | AE83: 2 | AF83: Billyconnolly
A84: K4o | C84: BB | D84: 20 | E84: 0.5 | Q84: 0 | R84: Kxo | Z84: 0.1371428571 | AA84: 0.7126530612 | AC84: 1 | AD84: 2022-07-11 | AE84: 2 | AF84: Billyconnolly
A85: K8o | B85: 85o | C85: SB | D85: 20 | E85: 0.5 | F85: l | G85: c/c/c | H85: 1 | I85: 1 | J85: 1 | K85: 0 | L85: 0 | M85: 0 | N85: 0 | O85: 0 | P85: 1 | Q85: 0 | R85: J8o-KQo | S85: 0 | T85: other-o | U85: 0 | V85: 0 | W85: 0 | X85: 1 | Y85: 0 | Z85: 0.08816326531 | AA85: 0.7518367347 | AB85: 0.73 | AC85: 1 | AD85: 2022-07-11 | AE85: 2 | AF85: Billyconnolly
A86: 84s | C86: BB | D86: 20 | E86: 0.5 | Q86: 0 | R86: other-s | Z86: 0.186122449 | AA86: 0.2065306122 | AC86: 1 | AD86: 2022-07-11 | AE86: 2 | AF86: Billyconnolly
A87: Qjo | B87: 95o | C87: SB | D87: 20 | E87: 0.5 | F87: l | G87: c/c/c | H87: 1 | I87: 0 | J87: 0 | K87: 0 | L87: 0 | M87: 0 | N87: 0 | O87: 0 | P87: 1 | Q87: 0 | R87: J8o-KQo | S87: 0 | T87: other-o | U87: 0 | V87: 0 | W87: 0 | X87: 0 | Y87: 0 | Z87: 0.05387755102 | AA87: 0.653877551 | AB87: 0.67 | AC87: 1 | AD87: 2022-07-11 | AE87: 2 | AF87: Billyconnolly
A88: J2s | C88: BB | D88: 20 | E88: 0.5 | Q88: 0 | R88: other-s | Z88: 0.1665306122 | AA88: 0.4514285714 | AC88: 1 | AD88: 2022-07-11 | AE88: 2 | AF88: Billyconnolly
A89: K7s | B89: K8s | C89: SB | D89: 20 | E89: 0.5 | F89: l | G89: c/c/c | H89: 1 | I89: 1 | J89: 0 | K89: 0 | L89: 0 | M89: 0 | N89: 0 | O89: 1 | P89: 0 | Q89: 0 | R89: Kxs | S89: 0 | T89: J8s-KQs | U89: 0 | V89: 0 | W89: 0 | X89: 0 | Y89: 1 | Z89: 0.1028571429 | AA89: 0.7420408163 | AB89: 0.45 | AC89: 1 | AD89: 2022-07-11 | AE89: 2 | AF89: Billyconnolly
A90: Kts | C90: BB | D90: 20 | E90: 0.5 | Q90: 0 | R90: J8s-KQs | Z90: 0.0587755102 | AA90: 0.7714285714 | AC90: 1 | AD90: 2022-07-11 | AE90: 2 | AF90: Billyconnolly
A91: A2o | B91: 96o | C91: SB | D91: 20 | E91: 0.5 | F91: l | G91: c/c/c | H91: 1 | I91: 1 | J91: 1 | K91: 0 | L91: 0 | M91: 0 | N91: 0 | O91: 0 | P91: 1 | Q91: 0 | R91: Axo | S91: 0 | T91: other-o | U91: 0 | V91: 0 | W91: 0 | X91: 0 | Y91: 0 | Z91: 0.1371428571 | AA91: 0.8334693878 | AB91: 0.57 | AC91: 1 | AD91: 2022-07-11 | AE91: 2 | AF91: Billyconnolly
A92: T9o | C92: BB | D92: 20 | E92: 0.5 | Q92: 0 | R92: 97o-T9o | Z92: 0.1028571429 | AA92: 0.4187755102 | AC92: 1 | AD92: 2022-07-11 | AE92: 2 | AF92: Billyconnolly
A93: 73o | B93: 72o | C93: SB | D93: 20 | E93: 0.5 | F93: l | G93: c/c/c | H93: 1 | I93: 1 | J93: 1 | K93: 0 | L93: 0 | M93: 1 | N93: 0 | O93: 0 | P93: 1 | Q93: 0 | R93: other-o | S93: 0 | T93: other-o | U93: 0 | V93: 0 | W93: 0 | X93: 0 | Y93: 0 | Z93: 0.2008163265 | AA93: 0.1346938776 | AB93: 0.78 | AC93: 1 | AD93: 2022-07-11 | AE93: 2 | AF93: Billyconnolly
A94: A6o | C94: BB | D94: 20 | E94: 0.5 | Q94: 0 | R94: Axo | Z94: 0.107755102 | AA94: 0.8726530612 | AC94: 1 | AD94: 2022-07-11 | AE94: 2 | AF94: Billyconnolly
A95: 87o | B95: 92s | C95: SB | D95: 20 | E95: 0.5 | F95: l | G95: c/c/c | H95: 0 | I95: 0 | J95: 0 | K95: 0 | L95: 0 | M95: 0 | N95: 0 | O95: 0 | P95: 0 | Q95: 0 | R95: 65o | S95: 0 | T95: other-s | U95: 0 | V95: 0 | W95: 0 | X95: 0 | Y95: 0 | Z95: 0.1518367347 | AA95: 0.2359183673 | AB95: 0.46 | AC95: 1 | AD95: 2022-07-11 | AE95: 2 | AF95: Billyconnolly
A96: 63s | C96: BB | D96: 20 | E96: 0.5 | Q96: 0 | R96: other-s | Z96: 0.2106122449 | AA96: 0.08571428571 | AC96: 1 | AD96: 2022-07-11 | AE96: 2 | AF96: Billyconnolly
A97: Ako | B97: A4o | C97: SB | D97: 20 | E97: 0.5 | F97: l | G97: c/c/c | H97: 1 | I97: 1 | J97: 1 | K97: 0 | L97: 0 | M97: 0 | N97: 0 | O97: 0 | P97: 1 | Q97: 1 | R97: AJ+ | S97: 0 | T97: Axo | U97: 0 | V97: 0 | W97: 0 | X97: 1 | Y97: 0 | Z97: 0.004897959184 | AA97: 0.9412244898 | AB97: 0.76 | AC97: 1 | AD97: 2022-07-11 | AE97: 2 | AF97: Billyconnolly
A98: Q5o | C98: BB | D98: 20 | E98: 0.5 | Q98: 0 | R98: other-o | Z98: 0.1420408163 | AA98: 0.5951020408 | AC98: 1 | AD98: 2022-07-11 | AE98: 2 | AF98: Billyconnolly
A99: Kts | B99: Q8o | C99: SB | D99: 20 | E99: 0.5 | F99: l | G99: c/c/c | H99: 0 | I99: 0 | J99: 0 | K99: 0 | L99: 0 | M99: 1 | N99: 1 | O99: 0 | P99: 1 | Q99: 0 | R99: J8s-KQs | S99: 0 | T99: J8o-KQo | U99: 0 | V99: 0 | W99: 0 | X99: 0 | Y99: 0 | Z99: 0.0587755102 | AA99: 0.7714285714 | AB99: 0.68 | AC99: 1 | AD99: 2022-07-11 | AE99: 2 | AF99: Billyconnolly
A100: Aqo | C100: BB | D100: 20 | E100: 0.5 | Q100: 1 | R100: AJ+ | Z100: 0.01959183673 | AA100: 0.9314285714 | AC100: 1 | AD100: 2022-07-11 | AE100: 2 | AF100: Billyconnolly
A101: 95o | B101: Jto | C101: SB | D101: 30 | E101: 0.5 | F101: l | G101: c/c/c | H101: 1 | I101: 1 | J101: 1 | K101: 0 | L101: 0 | M101: 0 | N101: 0 | O101: 0 | P101: 0 | Q101: 0 | R101: other-o | S101: 0 | T101: J8o-KQo | U101: 0 | V101: 0 | W101: 0 | X101: 0 | Y101: 0 | Z101: 0.1714285714 | AA101: 0.2914285714 | AB101: 0.32 | AC101: 1 | AD101: 2022-07-11 | AE101: 2 | AF101: Billyconnolly
A102: T4o | C102: BB | D102: 30 | E102: 0.5 | Q102: 0 | R102: other-o | Z102: 0.1665306122 | AA102: 0.3697959184 | AC102: 1 | AD102: 2022-07-11 | AE102: 2 | AF102: Billyconnolly
A103: A9o | B103: K3o | C103: SB | D103: 30 | E103: 0.5 | F103: l | G103: c/c/c | H103: 0 | I103: 0 | J103: 0 | K103: 0 | L103: 0 | M103: 1 | N103: 0 | O103: 0 | P103: 1 | Q103: 0 | R103: Axo | S103: 0 | T103: Kxo | U103: 0 | V103: 0 | W103: 0 | X103: 0 | Y103: 0 | Z103: 0.06367346939 | AA103: 0.9020408163 | AB103: 0.63 | AC103: 1 | AD103: 2022-07-11 | AE103: 2 | AF103: Billyconnolly
A104: 97s | C104: BB | D104: 30 | E104: 0.55 | F104: c | G104: c+f | R104: 97s-T9s | Z104: 0.1420408163 | AA104: 0.3110204082 | AC104: 0 | AD104: 2022-07-11 | AE104: 2 | AF104: Billyconnolly
A105: J6o | C105: SB | D105: 30 | E105: 0.5 | F105: f | R105: other-o | Z105: 0.1371428571 | AA105: 0.4906122449 | AC105: 0 | AD105: 2022-07-11 | AE105: 2 | AF105: Billyconnolly
A106: 84o | C106: BB | D106: 30 | E106: 0.5 | R106: other-o | Z106: 0.186122449 | AA106: 0.2065306122 | AC106: 0 | AD106: 2022-07-11 | AE106: 2 | AF106: Billyconnolly
A107: Q5o | C107: SB | D107: 30 | E107: 0.5 | F107: f | R107: other-o | Z107: 0.1420408163 | AA107: 0.5951020408 | AC107: 0 | AD107: 2022-07-11 | AE107: 2 | AF107: Billyconnolly
A108: Qjo | C108: BB | D108: 30 | E108: 0.5 | F108: c | G108: c+f | R108: J8o-KQo | Z108: 0.05387755102 | AA108: 0.653877551 | AC108: 0 | AD108: 2022-07-11 | AE108: 2 | AF108: Billyconnolly
A109: Ako | C109: SB | D109: 30 | E109: 0.5 | F109: push | R109: AJ+ | Z109: 0.004897959184 | AA109: 0.9412244898 | AC109: 0 | AD109: 2022-07-11 | AE109: 2 | AF109: Billyconnolly
A110: JJ | C110: BB | D110: 30 | E110: 0.5 | R110: 88+ | Z110: 0.01469387755 | AA110: 0.9853061224 | AC110: 0 | AD110: 2022-07-11 | AE110: 2 | AF110: Billyconnolly
A111: J7o | C111: SB | D111: 30 | E111: 0.5 | F111: f | R111: other-o | Z111: 0.1224489796 | AA111: 0.5004081633 | AC111: 0 | AD111: 2022-07-11 | AE111: 2 | AF111: Billyconnolly
A112: K8o | C112: BB | D112: 30 | E112: 0.5 | F112: f | R112: J8o-KQo | Z112: 0.08816326531 | AA112: 0.7518367347 | AC112: 0 | AD112: 2022-07-11 | AE112: 2 | AF112: Billyconnolly
A113: Kts | B113: Q5o | C113: SB | D113: 30 | E113: 0.5 | F113: l | G113: cl/cl/cl | H113: 0 | I113: 0 | J113: 0 | K113: 0 | L113: 0 | M113: 1 | N113: 0 | O113: 0 | P113: 1 | R113: J8s-KQs | T113: other-o | X113: 0 | Y113: 0 | Z113: 0.0587755102 | AA113: 0.7714285714 | AB113: 0.68 | AC113: 0 | AD113: 2022-07-11 | AE113: 2 | AF113: Billyconnolly
A114: T5o | B114: 93s | C114: BB | D114: 30 | E114: 0.45 | F114: c | G114: b/b/c | H114: 1 | I114: 1 | J114: 1 | K114: 0 | L114: 0 | M114: 0 | N114: 0 | O114: 0 | P114: 1 | R114: other-o | T114: other-s | X114: 0 | Y114: 0 | Z114: 0.1616326531 | AA114: 0.3795918367 | AB114: 0.6 | AC114: 0 | AD114: 2022-07-11 | AE114: 2 | AF114: Billyconnolly
A115: A8s | C115: SB | D115: 30 | E115: 0.5 | F115: l+cl | G115: r+f | R115: Axs | Z115: 0.07836734694 | AA115: 0.892244898 | AC115: 0 | AD115: 2022-07-11 | AE115: 2 | AF115: Billyconnolly
A116: 33 | B116: Kjo | C116: BB | D116: 30 | E116: 0.4 | F116: push | H116: 1 | I116: 1 | J116: 1 | K116: 0 | L116: 0 | M116: 0 | N116: 0 | O116: 0 | P116: 1 | R116: 22+ | T116: J8o-KQo | X116: 0 | Y116: 0 | Z116: 0.05387755102 | AA116: 0.946122449 | AB116: 0.53 | AC116: 0 | AD116: 2022-07-11 | AE116: 2 | AF116: Billyconnolly
A117: Q4o | C117: SB | D117: 30 | E117: 0.85 | F117: f | R117: other-o | Z117: 0.1469387755 | AA117: 0.5853061224 | AC117: 0 | AD117: 2022-07-11 | AE117: 2 | AF117: Billyconnolly
A118: 62o | C118: BB | D118: 30 | E118: 0.85 | F118: c | G118: b | R118: other-o | Z118: 0.2155102041 | AA118: 0.07591836735 | AC118: 0 | AD118: 2022-07-11 | AE118: 2 | AF118: Billyconnolly
A119: K2o | C119: SB | D119: 30 | E119: 0.85 | F119: f | R119: Kxo | Z119: 0.1469387755 | AA119: 0.6930612245 | AC119: 0 | AD119: 2022-07-11 | AE119: 2 | AF119: Billyconnolly
A120: 85o | C120: BB | D120: 30 | E120: 0.85 | F120: f | R120: other-o | Z120: 0.1812244898 | AA120: 0.2163265306 | AC120: 0 | AD120: 2022-07-11 | AE120: 2 | AF120: Billyconnolly
A121: Kqo | B121: Kjo | C121: SB | D121: 40 | E121: 0.85 | F121: push | H121: 0 | I121: 1 | J121: 1 | K121: 1 | L121: 0 | M121: 1 | N121: 0 | O121: 0 | P121: 1 | R121: J8o-KQo | T121: J8o-KQo | X121: 1 | Y121: 0 | Z121: 0.0293877551 | AA121: 0.7910204082 | AB121: 0.77 | AC121: 0 | AD121: 2022-07-11 | AE121: 2 | AF121: Billyconnolly
A122: 73o | C122: SB | D122: 20 | E122: 0.5 | F122: f | Q122: 0 | R122: other-o | Z122: 0.2008163265 | AA122: 0.1346938776 | AC122: 1 | AD122: 2022-07-11 | AE122: 3 | AF122: 1tsawdflife
A123: Ats | C123: BB | D123: 20 | E123: 0.5 | Q123: 0 | R123: Axs | Z123: 0.04897959184 | AA123: 0.9118367347 | AC123: 1 | AD123: 2022-07-11 | AE123: 3 | AF123: 1tsawdflife
A124: 64s | B124: K9s | C124: SB | D124: 20 | E124: 0.5 | F124: l | G124: c/c/c | H124: 0 | I124: 1 | J124: 0 | K124: 1 | L124: 0 | M124: 0 | N124: 0 | O124: 0 | P124: 0 | Q124: 0 | R124: 65s | S124: 0 | T124: J8s-KQs | U124: 0 | V124: 0 | W124: 0 | X124: 0 | Y124: 0 | Z124: 0.2057142857 | AA124: 0.09551020408 | AB124: 0.39 | AC124: 1 | AD124: 2022-07-11 | AE124: 3 | AF124: 1tsawdflife
A125: Q7s | C125: BB | D125: 20 | E125: 0.5 | Q125: 0 | R125: other-s | Z125: 0.1126530612 | AA125: 0.6146938776 | AC125: 1 | AD125: 2022-07-11 | AE125: 3 | AF125: 1tsawdflife
A126: 74o | B126: 33 | C126: SB | D126: 20 | E126: 0.5 | F126: l | G126: c/c/c | H126: 1 | I126: 1 | J126: 1 | K126: 1 | L126: 0 | M126: 0 | N126: 0 | O126: 0 | P126: 0 | Q126: 0 | R126: other-o | S126: 0 | T126: 22+ | U126: 0 | V126: 0 | W126: 0 | X126: 0 | Y126: 0 | Z126: 0.1959183673 | AA126: 0.1444897959 | AB126: 0.48 | AC126: 1 | AD126: 2022-07-11 | AE126: 3 | AF126: 1tsawdflife
A127: 85o | C127: BB | D127: 20 | E127: 0.5 | Q127: 0 | R127: other-o | Z127: 0.1812244898 | AA127: 0.2163265306 | AC127: 1 | AD127: 2022-07-11 | AE127: 3 | AF127: 1tsawdflife
A128: K8o | B128: T6s | C128: SB | D128: 20 | E128: 0.5 | F128: l | G128: c/c/c | H128: 0 | I128: 0 | J128: 0 | K128: 0 | L128: 0 | M128: 1 | N128: 0 | O128: 0 | P128: 1 | Q128: 0 | R128: J8o-KQo | S128: 0 | T128: other-s | U128: 0 | V128: 0 | W128: 0 | X128: 0 | Y128: 0 | Z128: 0.08816326531 | AA128: 0.7518367347 | AB128: 0.59 | AC128: 1 | AD128: 2022-07-11 | AE128: 3 | AF128: 1tsawdflife
A129: K2o | C129: BB | D129: 20 | E129: 0.5 | Q129: 0 | R129: Kxo | Z129: 0.1469387755 | AA129: 0.6930612245 | AC129: 1 | AD129: 2022-07-11 | AE129: 3 | AF129: 1tsawdflife
A130: 95o | B130: 75s | C130: SB | D130: 20 | E130: 0.5 | F130: l | G130: c/c/c | H130: 1 | I130: 1 | J130: 1 | K130: 0 | L130: 0 | M130: 0 | N130: 0 | O130: 0 | P130: 1 | Q130: 0 | R130: other-o | S130: 0 | T130: 65s | U130: 0 | V130: 0 | W130: 0 | X130: 1 | Y130: 0 | Z130: 0.1714285714 | AA130: 0.2914285714 | AB130: 0.69 | AC130: 1 | AD130: 2022-07-11 | AE130: 3 | AF130: 1tsawdflife
A131: K7o | C131: BB | D131: 20 | E131: 0.5 | Q131: 0 | R131: Kxo | Z131: 0.1028571429 | AA131: 0.7420408163 | AC131: 1 | AD131: 2022-07-11 | AE131: 3 | AF131: 1tsawdflife
A132: Aqo | B132: T8o | C132: SB | D132: 20 | E132: 0.5 | F132: l | G132: c/c/c | H132: 1 | I132: 1 | J132: 1 | K132: 0 | L132: 0 | M132: 0 | N132: 0 | O132: 0 | P132: 1 | Q132: 1 | R132: AJ+ | S132: 0 | T132: 97o-T9o | U132: 0 | V132: 0 | W132: 0 | X132: 0 | Y132: 0 | Z132: 0.01959183673 | AA132: 0.9314285714 | AB132: 0.64 | AC132: 1 | AD132: 2022-07-11 | AE132: 3 | AF132: 1tsawdflife
A133: A3o | C133: BB | D133: 20 | E133: 0.5 | Q133: 0 | R133: Axo | Z133: 0.132244898 | AA133: 0.8432653061 | AC133: 1 | AD133: 2022-07-11 | AE133: 3 | AF133: 1tsawdflife
A134: J8o | B134: 96o | C134: SB | D134: 20 | E134: 0.5 | F134: l | G134: c/c/c | H134: 1 | I134: 1 | J134: 1 | K134: 0 | L134: 0 | M134: 0 | N134: 0 | O134: 0 | P134: 1 | Q134: 0 | R134: J8o-KQo | S134: 0 | T134: other-o | U134: 0 | V134: 0 | W134: 0 | X134: 0 | Y134: 0 | Z134: 0.107755102 | AA134: 0.5102040816 | AB134: 0.64 | AC134: 1 | AD134: 2022-07-11 | AE134: 3 | AF134: 1tsawdflife
A135: A6o | C135: BB | D135: 20 | E135: 0.55 | Q135: 0 | R135: Axo | Z135: 0.107755102 | AA135: 0.8726530612 | AC135: 1 | AD135: 2022-07-11 | AE135: 3 | AF135: 1tsawdflife
A136: 72s | B136: T5o | C136: SB | D136: 20 | E136: 0.55 | F136: l | G136: c/c/c | H136: 0 | I136: 0 | J136: 0 | K136: 0 | L136: 0 | M136: 0 | N136: 0 | O136: 0 | P136: 0 | Q136: 0 | R136: other-s | S136: 0 | T136: other-o | U136: 0 | V136: 0 | W136: 0 | X136: 0 | Y136: 0 | Z136: 0.2057142857 | AA136: 0.1248979592 | AB136: 0.41 | AC136: 1 | AD136: 2022-07-11 | AE136: 3 | AF136: 1tsawdflife
A137: Aks | C137: BB | D137: 20 | E137: 0.55 | Q137: 1 | R137: AJ+ | Z137: 0.004897959184 | AA137: 0.9412244898 | AC137: 1 | AD137: 2022-07-11 | AE137: 3 | AF137: 1tsawdflife
A138: 84o | B138: 95o | C138: SB | D138: 20 | E138: 0.55 | F138: l | G138: c/c/c | H138: 1 | I138: 1 | J138: 1 | K138: 0 | L138: 0 | M138: 0 | N138: 0 | O138: 0 | P138: 0 | Q138: 0 | R138: other-o | S138: 0 | T138: other-o | U138: 0 | V138: 0 | W138: 0 | X138: 0 | Y138: 0 | Z138: 0.186122449 | AA138: 0.2065306122 | AB138: 0.39 | AC138: 1 | AD138: 2022-07-11 | AE138: 3 | AF138: 1tsawdflife
A139: T7o | C139: BB | D139: 20 | E139: 0.55 | Q139: 0 | R139: other-o | Z139: 0.132244898 | AA139: 0.3991836735 | AC139: 1 | AD139: 2022-07-11 | AE139: 3 | AF139: 1tsawdflife
A140: J2s | B140: A3o | C140: SB | D140: 20 | E140: 0.55 | F140: l | G140: c/c/c | H140: 1 | I140: 1 | J140: 1 | K140: 0 | L140: 0 | M140: 0 | N140: 0 | O140: 0 | P140: 0 | Q140: 0 | R140: other-s | S140: 0 | T140: Axo | U140: 0 | V140: 0 | W140: 0 | X140: 0 | Y140: 0 | Z140: 0.1665306122 | AA140: 0.4514285714 | AB140: 0.4 | AC140: 1 | AD140: 2022-07-11 | AE140: 3 | AF140: 1tsawdflife
A141: Qto | C141: BB | D141: 20 | E141: 0.55 | Q141: 0 | R141: J8o-KQo | Z141: 0.06857142857 | AA141: 0.6440816327 | AC141: 1 | AD141: 2022-07-11 | AE141: 3 | AF141: 1tsawdflife
A142: A8o | B142: K6s | C142: SB | D142: 20 | E142: 0.55 | F142: l | G142: c/c/c | H142: 1 | I142: 1 | J142: 1 | K142: 0 | L142: 0 | M142: 0 | N142: 0 | O142: 0 | P142: 1 | Q142: 0 | R142: Axo | S142: 0 | T142: Kxs | U142: 0 | V142: 0 | W142: 0 | X142: 0 | Y142: 0 | Z142: 0.07836734694 | AA142: 0.892244898 | AB142: 0.59 | AC142: 1 | AD142: 2022-07-11 | AE142: 3 | AF142: 1tsawdflife
A143: A2o | C143: BB | D143: 20 | E143: 0.55 | Q143: 0 | R143: Axo | Z143: 0.1371428571 | AA143: 0.8334693878 | AC143: 1 | AD143: 2022-07-11 | AE143: 3 | AF143: 1tsawdflife
A144: A3o | B144: 94o | C144: SB | D144: 20 | E144: 0.55 | F144: l | G144: c/c/c | H144: 1 | I144: 1 | J144: 1 | K144: 0 | L144: 1 | M144: 0 | N144: 0 | O144: 0 | P144: 1 | Q144: 0 | R144: Axo | S144: 0 | T144: other-o | U144: 0 | V144: 1 | W144: 0 | X144: 0 | Y144: 0 | Z144: 0.132244898 | AA144: 0.8432653061 | AB144: 0.6 | AC144: 1 | AD144: 2022-07-11 | AE144: 3 | AF144: 1tsawdflife
A145: 75s | C145: BB | D145: 20 | E145: 0.55 | Q145: 0 | R145: 65s | Z145: 0.1910204082 | AA145: 0.1542857143 | AC145: 1 | AD145: 2022-07-11 | AE145: 3 | AF145: 1tsawdflife
A146: 85o | B146: K2s | C146: SB | D146: 20 | E146: 0.55 | F146: l | G146: c/c/c | H146: 0 | I146: 0 | J146: 0 | K146: 0 | L146: 0 | M146: 1 | N146: 0 | O146: 1 | P146: 0 | Q146: 0 | R146: other-o | S146: 0 | T146: Kxs | U146: 0 | V146: 0 | W146: 0 | X146: 0 | Y146: 0 | Z146: 0.1812244898 | AA146: 0.2163265306 | AB146: 0.41 | AC146: 1 | AD146: 2022-07-11 | AE146: 3 | AF146: 1tsawdflife
A147: Ako | C147: BB | D147: 20 | E147: 0.55 | Q147: 1 | R147: AJ+ | Z147: 0.004897959184 | AA147: 0.9412244898 | AC147: 1 | AD147: 2022-07-11 | AE147: 3 | AF147: 1tsawdflife
A148: 92s | B148: A8o | C148: SB | D148: 20 | E148: 0.55 | F148: l | G148: c/c/c | H148: 1 | I148: 1 | J148: 1 | K148: 0 | L148: 0 | M148: 0 | N148: 0 | O148: 0 | P148: 0 | Q148: 0 | R148: other-s | S148: 0 | T148: Axo | U148: 0 | V148: 0 | W148: 0 | X148: 0 | Y148: 0 | Z148: 0.186122449 | AA148: 0.2620408163 | AB148: 0.4 | AC148: 1 | AD148: 2022-07-11 | AE148: 3 | AF148: 1tsawdflife
A149: A7o | C149: BB | D149: 20 | E149: 0.55 | Q149: 0 | R149: Axo | Z149: 0.09306122449 | AA149: 0.8824489796 | AC149: 1 | AD149: 2022-07-11 | AE149: 3 | AF149: 1tsawdflife
A150: T8s | B150: T2o | C150: SB | D150: 20 | E150: 0.55 | F150: l | G150: c/c/c | H150: 0 | I150: 0 | J150: 0 | K150: 0 | L150: 0 | M150: 1 | N150: 0 | O150: 0 | P150: 1 | Q150: 0 | R150: 97s-T9s | S150: 0 | T150: other-o | U150: 0 | V150: 0 | W150: 0 | X150: 1 | Y150: 0 | Z150: 0.1175510204 | AA150: 0.4089795918 | AB150: 0.8 | AC150: 1 | AD150: 2022-07-11 | AE150: 3 | AF150: 1tsawdflife
A151: J3o | C151: BB | D151: 20 | E151: 0.55 | Q151: 0 | R151: other-o | Z151: 0.1616326531 | AA151: 0.4612244898 | AC151: 1 | AD151: 2022-07-11 | AE151: 3 | AF151: 1tsawdflife
A152: 62s | B152: 55 | C152: SB | D152: 20 | E152: 0.55 | F152: l | G152: c/c/c | H152: 0 | I152: 0 | J152: 0 | K152: 0 | L152: 0 | M152: 0 | N152: 0 | O152: 0 | P152: 0 | Q152: 0 | R152: other-s | S152: 0 | T152: 22+ | U152: 0 | V152: 0 | W152: 0 | X152: 0 | Y152: 1 | Z152: 0.2155102041 | AA152: 0.07591836735 | AB152: 0.33 | AC152: 1 | AD152: 2022-07-11 | AE152: 3 | AF152: 1tsawdflife
A153: J3o | C153: BB | D153: 20 | E153: 0.55 | Q153: 0 | R153: other-o | Z153: 0.1616326531 | AA153: 0.4612244898 | AC153: 1 | AD153: 2022-07-11 | AE153: 3 | AF153: 1tsawdflife
A154: A5o | B154: Q5o | C154: SB | D154: 20 | E154: 0.55 | F154: l | G154: c/c/c | H154: 1 | I154: 1 | J154: 1 | K154: 1 | L154: 0 | M154: 0 | N154: 0 | O154: 0 | P154: 1 | Q154: 0 | R154: Axo | S154: 0 | T154: other-o | U154: 0 | V154: 0 | W154: 0 | X154: 1 | Y154: 0 | Z154: 0.1224489796 | AA154: 0.8628571429 | AB154: 0.77 | AC154: 1 | AD154: 2022-07-11 | AE154: 3 | AF154: 1tsawdflife
A155: J7o | C155: BB | D155: 20 | E155: 0.55 | Q155: 0 | R155: other-o | Z155: 0.1224489796 | AA155: 0.5004081633 | AC155: 1 | AD155: 2022-07-11 | AE155: 3 | AF155: 1tsawdflife
A156: 65o | B156: 32o | C156: SB | D156: 20 | E156: 0.55 | F156: l | G156: c/c/c | H156: 1 | I156: 1 | J156: 1 | K156: 0 | L156: 0 | M156: 0 | N156: 0 | O156: 0 | P156: 1 | Q156: 0 | R156: 65o | S156: 0 | T156: other-o | U156: 0 | V156: 0 | W156: 0 | X156: 0 | Y156: 0 | Z156: 0.2008163265 | AA156: 0.1053061224 | AB156: 0.69 | AC156: 1 | AD156: 2022-07-11 | AE156: 3 | AF156: 1tsawdflife
A157: T7s | C157: BB | D157: 20 | E157: 0.55 | Q157: 0 | R157: other-s | Z157: 0.132244898 | AA157: 0.3991836735 | AC157: 1 | AD157: 2022-07-11 | AE157: 3 | AF157: 1tsawdflife
A158: Kto | B158: 95o | C158: SB | D158: 30 | E158: 0.55 | F158: l | G158: c/c/c | H158: 0 | I158: 0 | J158: 0 | K158: 0 | L158: 0 | M158: 1 | N158: 0 | O158: 0 | P158: 1 | Q158: 0 | R158: J8o-KQo | S158: 0 | T158: other-o | U158: 0 | V158: 0 | W158: 0 | X158: 0 | Y158: 0 | Z158: 0.0587755102 | AA158: 0.7714285714 | AB158: 0.67 | AC158: 1 | AD158: 2022-07-11 | AE158: 3 | AF158: 1tsawdflife
A159: 95s | C159: BB | D159: 30 | E159: 0.55 | Q159: 0 | R159: other-s | Z159: 0.1714285714 | AA159: 0.2914285714 | AC159: 1 | AD159: 2022-07-11 | AE159: 3 | AF159: 1tsawdflife
A160: 96o | B160: J4o | C160: SB | D160: 30 | E160: 0.55 | F160: l | G160: c/c/c | H160: 0 | I160: 0 | J160: 0 | K160: 0 | L160: 0 | M160: 1 | N160: 1 | O160: 0 | P160: 0 | Q160: 0 | R160: other-o | S160: 0 | T160: other-o | U160: 0 | V160: 0 | W160: 0 | X160: 0 | Y160: 0 | Z160: 0.1567346939 | AA160: 0.3012244898 | AB160: 0.43 | AC160: 1 | AD160: 2022-07-11 | AE160: 3 | AF160: 1tsawdflife
A161: 43o | C161: BB | D161: 30 | E161: 0.55 | Q161: 0 | R161: other-o | Z161: 0.2302040816 | AA161: 0.02693877551 | AC161: 1 | AD161: 2022-07-11 | AE161: 3 | AF161: 1tsawdflife
A162: 75o | B162: A2o | C162: SB | D162: 30 | E162: 0.55 | F162: l | G162: c/c/c | H162: 1 | I162: 1 | J162: 1 | K162: 0 | L162: 0 | M162: 0 | N162: 0 | O162: 0 | P162: 0 | Q162: 0 | R162: 65o | S162: 0 | T162: Axo | U162: 0 | V162: 0 | W162: 0 | X162: 0 | Y162: 0 | Z162: 0.1910204082 | AA162: 0.1542857143 | AB162: 0.44 | AC162: 1 | AD162: 2022-07-11 | AE162: 3 | AF162: 1tsawdflife
A163: K7s | C163: BB | D163: 30 | E163: 0.6 | Q163: 0 | R163: Kxs | Z163: 0.1028571429 | AA163: 0.7420408163 | AC163: 1 | AD163: 2022-07-11 | AE163: 3 | AF163: 1tsawdflife
A164: A3o | B164: K5o | C164: SB | D164: 30 | E164: 0.6 | F164: l | G164: c/c/c | H164: 1 | I164: 1 | J164: 1 | K164: 0 | L164: 0 | M164: 1 | N164: 0 | O164: 0 | P164: 1 | Q164: 0 | R164: Axo | S164: 0 | T164: Kxo | U164: 0 | V164: 0 | W164: 0 | X164: 0 | Y164: 0 | Z164: 0.132244898 | AA164: 0.8432653061 | AB164: 0.61 | AC164: 1 | AD164: 2022-07-11 | AE164: 3 | AF164: 1tsawdflife
A165: T3o | C165: BB | D165: 30 | E165: 0.6 | Q165: 0 | R165: other-o | Z165: 0.1714285714 | AA165: 0.36 | AC165: 1 | AD165: 2022-07-11 | AE165: 3 | AF165: 1tsawdflife
A166: 85o | B166: 75o | C166: SB | D166: 30 | E166: 0.6 | F166: l | G166: c/c/c | H166: 1 | I166: 1 | J166: 1 | K166: 0 | L166: 0 | M166: 0 | N166: 0 | O166: 0 | P166: 1 | Q166: 0 | R166: other-o | S166: 0 | T166: 65o | U166: 0 | V166: 0 | W166: 0 | X166: 1 | Y166: 0 | Z166: 0.1812244898 | AA166: 0.2163265306 | AB166: 0.75 | AC166: 1 | AD166: 2022-07-11 | AE166: 3 | AF166: 1tsawdflife
A167: Q3o | C167: BB | D167: 30 | E167: 0.6 | Q167: 0 | R167: other-o | Z167: 0.1518367347 | AA167: 0.5755102041 | AC167: 1 | AD167: 2022-07-11 | AE167: 3 | AF167: 1tsawdflife
A168: J9o | B168: T7o | C168: SB | D168: 30 | E168: 0.6 | F168: l | G168: c/c/c | H168: 1 | I168: 1 | J168: 1 | K168: 0 | L168: 0 | M168: 0 | N168: 0 | O168: 0 | P168: 1 | Q168: 0 | R168: J8o-KQo | S168: 0 | T168: other-o | U168: 0 | V168: 0 | W168: 0 | X168: 0 | Y168: 0 | Z168: 0.09306122449 | AA168: 0.52 | AB168: 0.65 | AC168: 1 | AD168: 2022-07-11 | AE168: 3 | AF168: 1tsawdflife
A169: J3o | C169: BB | D169: 30 | E169: 0.6 | Q169: 0 | R169: other-o | Z169: 0.1616326531 | AA169: 0.4612244898 | AC169: 1 | AD169: 2022-07-11 | AE169: 3 | AF169: 1tsawdflife
A170: 94o | B170: AA | C170: SB | D170: 30 | E170: 0.6 | F170: l | G170: c/c/c | H170: 0 | I170: 0 | J170: 0 | K170: 0 | L170: 0 | M170: 1 | N170: 1 | O170: 0 | P170: 0 | Q170: 0 | R170: other-o | S170: 1 | T170: 88+ | U170: 0 | V170: 0 | W170: 0 | X170: 0 | Y170: 1 | Z170: 0.1763265306 | AA170: 0.2816326531 | AB170: 0.13 | AC170: 1 | AD170: 2022-07-11 | AE170: 3 | AF170: 1tsawdflife
A171: J8o | C171: BB | D171: 30 | E171: 0.6 | Q171: 0 | R171: J8o-KQo | Z171: 0.107755102 | AA171: 0.5102040816 | AC171: 1 | AD171: 2022-07-11 | AE171: 3 | AF171: 1tsawdflife
A172: J8s | B172: J7o | C172: SB | D172: 30 | E172: 0.6 | F172: l | G172: c/c/c | H172: 1 | I172: 1 | J172: 1 | K172: 0 | L172: 0 | M172: 0 | N172: 0 | O172: 0 | P172: 1 | Q172: 0 | R172: J8s-KQs | S172: 0 | T172: other-o | U172: 0 | V172: 0 | W172: 0 | X172: 1 | Y172: 0 | Z172: 0.107755102 | AA172: 0.5102040816 | AB172: 0.79 | AC172: 1 | AD172: 2022-07-11 | AE172: 3 | AF172: 1tsawdflife
A173: 83s | C173: BB | D173: 30 | E173: 0.6 | Q173: 0 | R173: other-s | Z173: 0.1910204082 | AA173: 0.1967346939 | AC173: 1 | AD173: 2022-07-11 | AE173: 3 | AF173: 1tsawdflife
A174: 94s | B174: Kqo | C174: SB | D174: 30 | E174: 0.6 | F174: l | G174: c/c/c | H174: 1 | I174: 0 | J174: 0 | K174: 0 | L174: 0 | M174: 0 | N174: 0 | O174: 0 | P174: 0 | Q174: 0 | R174: other-s | S174: 0 | T174: J8o-KQo | U174: 0 | V174: 0 | W174: 0 | X174: 0 | Y174: 0 | Z174: 0.1763265306 | AA174: 0.2816326531 | AB174: 0.37 | AC174: 1 | AD174: 2022-07-11 | AE174: 3 | AF174: 1tsawdflife
A175: Qto | C175: BB | D175: 30 | E175: 0.6 | Q175: 0 | R175: J8o-KQo | Z175: 0.06857142857 | AA175: 0.6440816327 | AC175: 1 | AD175: 2022-07-11 | AE175: 3 | AF175: 1tsawdflife
A176: 77 | B176: Q5o | C176: SB | D176: 30 | E176: 0.6 | F176: l | G176: c/c/c | H176: 0 | I176: 0 | J176: 0 | K176: 0 | L176: 0 | M176: 1 | N176: 1 | O176: 0 | P176: 1 | Q176: 0 | R176: 22+ | S176: 0 | T176: other-o | U176: 0 | V176: 0 | W176: 0 | X176: 1 | Y176: 0 | Z176: 0.03428571429 | AA176: 0.9657142857 | AB176: 0.71 | AC176: 1 | AD176: 2022-07-11 | AE176: 3 | AF176: 1tsawdflife
A177: Q3o | C177: BB | D177: 30 | E177: 0.6 | Q177: 0 | R177: other-o | Z177: 0.1518367347 | AA177: 0.5755102041 | AC177: 1 | AD177: 2022-07-11 | AE177: 3 | AF177: 1tsawdflife
A178: Q9o | B178: K2o | C178: SB | D178: 30 | E178: 0.6 | F178: l | G178: c/c/c | H178: 1 | I178: 1 | J178: 1 | K178: 0 | L178: 0 | M178: 0 | N178: 0 | O178: 0 | P178: 0 | Q178: 0 | R178: J8o-KQo | S178: 0 | T178: Kxo | U178: 0 | V178: 0 | W178: 0 | X178: 0 | Y178: 0 | Z178: 0.08326530612 | AA178: 0.6342857143 | AB178: 0.43 | AC178: 1 | AD178: 2022-07-11 | AE178: 3 | AF178: 1tsawdflife
A179: K9o | C179: BB | D179: 30 | E179: 0.65 | Q179: 0 | R179: J8o-KQo | Z179: 0.07346938776 | AA179: 0.7616326531 | AC179: 1 | AD179: 2022-07-11 | AE179: 3 | AF179: 1tsawdflife
A180: J4o | B180: A5o | C180: SB | D180: 30 | E180: 0.65 | F180: l | G180: c/c/c | H180: 0 | I180: 0 | J180: 0 | K180: 0 | L180: 0 | M180: 1 | N180: 0 | O180: 0 | P180: 0 | Q180: 0 | R180: other-o | S180: 0 | T180: Axo | U180: 0 | V180: 0 | W180: 0 | X180: 0 | Y180: 0 | Z180: 0.1567346939 | AA180: 0.4710204082 | AB180: 0.36 | AC180: 1 | AD180: 2022-07-11 | AE180: 3 | AF180: 1tsawdflife
A181: Ato | C181: BB | D181: 30 | E181: 0.6 | Q181: 0 | R181: Axo | Z181: 0.04897959184 | AA181: 0.9118367347 | AC181: 1 | AD181: 2022-07-11 | AE181: 3 | AF181: 1tsawdflife
A182: K2o | B182: 63o | C182: SB | D182: 30 | E182: 0.65 | F182: l | G182: c/c/c | H182: 0 | I182: 0 | J182: 0 | K182: 0 | L182: 1 | M182: 1 | N182: 0 | O182: 0 | P182: 1 | Q182: 0 | R182: Kxo | S182: 0 | T182: other-o | U182: 0 | V182: 0 | W182: 1 | X182: 0 | Y182: 0 | Z182: 0.1469387755 | AA182: 0.6930612245 | AB182: 0.58 | AC182: 1 | AD182: 2022-07-11 | AE182: 3 | AF182: 1tsawdflife
A183: K7o | C183: BB | D183: 30 | E183: 0.6 | Q183: 0 | R183: Kxo | Z183: 0.1028571429 | AA183: 0.7420408163 | AC183: 1 | AD183: 2022-07-11 | AE183: 3 | AF183: 1tsawdflife
A184: 83o | B184: A6o | C184: SB | D184: 30 | E184: 0.6 | F184: l | G184: c/c/c | H184: 0 | I184: 0 | J184: 0 | K184: 0 | L184: 0 | M184: 0 | N184: 0 | O184: 0 | P184: 0 | Q184: 0 | R184: other-o | S184: 0 | T184: Axo | U184: 0 | V184: 0 | W184: 0 | X184: 0 | Y184: 0 | Z184: 0.1910204082 | AA184: 0.1967346939 | AB184: 0.36 | AC184: 1 | AD184: 2022-07-11 | AE184: 3 | AF184: 1tsawdflife
A185: A8o | C185: BB | D185: 30 | E185: 0.6 | Q185: 0 | R185: Axo | Z185: 0.07836734694 | AA185: 0.892244898 | AC185: 1 | AD185: 2022-07-11 | AE185: 3 | AF185: 1tsawdflife
A186: K5o | B186: Q8o | C186: SB | D186: 30 | E186: 0.6 | F186: l | G186: c/c/c | H186: 1 | I186: 0 | J186: 0 | K186: 0 | L186: 0 | M186: 0 | N186: 0 | O186: 0 | P186: 1 | Q186: 0 | R186: Kxo | S186: 0 | T186: J8o-KQo | U186: 0 | V186: 0 | W186: 0 | X186: 0 | Y186: 0 | Z186: 0.132244898 | AA186: 0.7224489796 | AB186: 0.6 | AC186: 1 | AD186: 2022-07-11 | AE186: 3 | AF186: 1tsawdflife
A187: T9o | C187: BB | D187: 30 | E187: 0.6 | Q187: 0 | R187: 97o-T9o | Z187: 0.1028571429 | AA187: 0.4187755102 | AC187: 1 | AD187: 2022-07-11 | AE187: 3 | AF187: 1tsawdflife
A188: 32o | B188: 85o | C188: SB | D188: 30 | E188: 0.6 | F188: l | G188: c/c/c | H188: 0 | I188: 0 | J188: 0 | K188: 0 | L188: 0 | M188: 0 | N188: 0 | O188: 0 | P188: 0 | Q188: 0 | R188: other-o | S188: 0 | T188: other-o | U188: 0 | V188: 0 | W188: 0 | X188: 0 | Y188: 0 | Z188: 0.2351020408 | AA188: 0.007346938776 | AB188: 0.38 | AC188: 1 | AD188: 2022-07-11 | AE188: 3 | AF188: 1tsawdflife
A189: T5o | C189: BB | D189: 30 | E189: 0.6 | Q189: 0 | R189: other-o | Z189: 0.1616326531 | AA189: 0.3795918367 | AC189: 1 | AD189: 2022-07-11 | AE189: 3 | AF189: 1tsawdflife
A190: 96o | B190: 97o | C190: SB | D190: 30 | E190: 0.6 | F190: l | G190: c/c/c | H190: 0 | I190: 0 | J190: 0 | K190: 0 | L190: 0 | M190: 1 | N190: 0 | O190: 0 | P190: 0 | Q190: 0 | R190: other-o | S190: 0 | T190: 97o-T9o | U190: 0 | V190: 0 | W190: 0 | X190: 0 | Y190: 1 | Z190: 0.1567346939 | AA190: 0.3012244898 | AB190: 0.5 | AC190: 1 | AD190: 2022-07-11 | AE190: 3 | AF190: 1tsawdflife
A191: A7o | C191: BB | D191: 30 | E191: 0.6 | Q191: 0 | R191: Axo | Z191: 0.09306122449 | AA191: 0.8824489796 | AC191: 1 | AD191: 2022-07-11 | AE191: 3 | AF191: 1tsawdflife
A192: 86o | B192: 73o | C192: SB | D192: 30 | E192: 0.6 | F192: l | G192: c/c/c | H192: 0 | I192: 0 | J192: 0 | K192: 0 | L192: 0 | M192: 1 | N192: 0 | O192: 0 | P192: 1 | Q192: 0 | R192: 65o | S192: 0 | T192: other-o | U192: 0 | V192: 0 | W192: 0 | X192: 0 | Y192: 0 | Z192: 0.1665306122 | AA192: 0.226122449 | AB192: 0.67 | AC192: 1 | AD192: 2022-07-11 | AE192: 3 | AF192: 1tsawdflife
A193: J9o | C193: BB | D193: 30 | E193: 0.6 | Q193: 0 | R193: J8o-KQo | Z193: 0.09306122449 | AA193: 0.52 | AC193: 1 | AD193: 2022-07-11 | AE193: 3 | AF193: 1tsawdflife
A194: Q8s | B194: 42o | C194: SB | D194: 30 | E194: 0.6 | F194: l | G194: c/c/c | H194: 0 | I194: 0 | J194: 0 | K194: 0 | L194: 0 | M194: 1 | N194: 0 | O194: 0 | P194: 1 | Q194: 0 | R194: J8s-KQs | S194: 0 | T194: other-o | U194: 0 | V194: 0 | W194: 0 | X194: 0 | Y194: 0 | Z194: 0.09795918367 | AA194: 0.6244897959 | AB194: 0.68 | AC194: 1 | AD194: 2022-07-11 | AE194: 3 | AF194: 1tsawdflife
A195: KK | C195: BB | D195: 30 | E195: 0.6 | Q195: 1 | R195: 88+ | Z195: 0.004897959184 | AA195: 0.9951020408 | AC195: 1 | AD195: 2022-07-11 | AE195: 3 | AF195: 1tsawdflife
A196: 88 | B196: A4o | C196: SB | D196: 30 | E196: 0.6 | F196: l | G196: c/c/c | H196: 1 | I196: 1 | J196: 1 | K196: 0 | L196: 0 | M196: 1 | N196: 0 | O196: 0 | P196: 1 | Q196: 1 | R196: 88+ | S196: 0 | T196: Axo | U196: 0 | V196: 0 | W196: 0 | X196: 1 | Y196: 0 | Z196: 0.0293877551 | AA196: 0.9706122449 | AB196: 0.69 | AC196: 1 | AD196: 2022-07-11 | AE196: 3 | AF196: 1tsawdflife
A197: 94s | C197: BB | D197: 30 | E197: 0.6 | Q197: 0 | R197: other-s | Z197: 0.1763265306 | AA197: 0.2816326531 | AC197: 1 | AD197: 2022-07-11 | AE197: 3 | AF197: 1tsawdflife
A198: A7o | B198: Q3o | C198: SB | D198: 30 | E198: 0.6 | F198: l | G198: c/c/c | H198: 1 | I198: 1 | J198: 1 | K198: 0 | L198: 0 | M198: 0 | N198: 0 | O198: 0 | P198: 1 | Q198: 0 | R198: Axo | S198: 0 | T198: other-o | U198: 0 | V198: 0 | W198: 0 | X198: 0 | Y198: 0 | Z198: 0.09306122449 | AA198: 0.8824489796 | AB198: 0.64 | AC198: 1 | AD198: 2022-07-11 | AE198: 3 | AF198: 1tsawdflife
A199: 52o | C199: BB | D199: 40 | E199: 0.6 | Q199: 0 | R199: other-o | Z199: 0.2351020408 | AA199: 0.04 | AC199: 1 | AD199: 2022-07-11 | AE199: 3 | AF199: 1tsawdflife
A200: Kts | B200: J9o | C200: SB | D200: 40 | E200: 0.6 | F200: l | G200: c/c/c | H200: 1 | I200: 1 | J200: 1 | K200: 0 | L200: 0 | M200: 0 | N200: 0 | O200: 0 | P200: 1 | Q200: 0 | R200: J8s-KQs | S200: 0 | T200: J8o-KQo | U200: 0 | V200: 0 | W200: 0 | X200: 0 | Y200: 0 | Z200: 0.0587755102 | AA200: 0.7714285714 | AB200: 0.66 | AC200: 1 | AD200: 2022-07-11 | AE200: 3 | AF200: 1tsawdflife
A201: K3o | C201: BB | D201: 40 | E201: 0.65 | Q201: 0 | R201: Kxo | Z201: 0.1420408163 | AA201: 0.7028571429 | AC201: 1 | AD201: 2022-07-11 | AE201: 3 | AF201: 1tsawdflife
... 787 more rows

Sheet HU sit out RS Report
A1: Analysis of Red Star Poker sit-out hands (NLH Heads-Up games - 0.5$ buy-in)
A3: Introduction
B6: After a year brake from online poker gaming, I joined Red Star Poker. Been a professional level player
B7: I still decided to play low limit games, to test the software, and get used to the game.
B8: A huge online poker gaming experience and expert financial risk analitics level helped me to notice
B9: a significant difference between Red Star Poker game and a real life Texas holdem poker. More then that,
B10: I managed to find specific moments in software behaviour and used them in taking effective decisions.
B11: But I realized that my profitability is still limited by a software. It's possible but pretty complicated task -
B12: to prove that hands are not randomly dealt and spread between players because usually opponents cards
B13: are hidden. After I moved from Sit&Go tournaments to heads-up games I managed to catch some games
B14: where my opponents were "sitting out" for some reason. And I "checked till the river" around one thousand
B15: hands.
B16: So, all the cards became visible and it let me to provide a complete cards dealing process analysis
B17: which you can see below.
A21: Cyclicity of hands winning
B23: Total distance: | D23: 455 | E23: hands
F24: Statistical estimations
A25: Wave N | B25: Average winning chances | C25: Lenth (hands) | D25: Fact (hands won) | E25: Distance for event to appear | F25: Event chances | G25: Wave repeat once in (hands) | H25: Chances of the wave to appear | I25: Game stage
A26: Wave 1 | B26: 0.566 | C26: 21 | D26: 0.286 | E26: =$D$23-SUM($C$26:$C$31)+C26 -> 321 | F26: 0.0058 | G26: 500 | H26: 0.4347 | I26: Game 3 Stack 60%-65%
A27: Wave 2 | B27: 0.466 | C27: 55 | D27: 0.236 | E27: 355 | F27: 0.0004 | G27: 43000 | H27: 0.0067 | I27: Game 3 Stack 85%-95%
A28: Wave 3 | B28: 0.544 | C28: 10 | D28: 1 | E28: 310 | F28: 0.0023 | G28: 1000 | H28: 0.2659 | I28: Game 4 Stack 60%-75%
A29: Wave 4 | B29: 0.578 | C29: 16 | D29: 0.313 | E29: 316 | F29: 0.0295 | G29: 150 | H29: 0.8594 | I29: Game 5-6
A30: Wave 5 | B30: 0.553 | C30: 12 | D30: 0.25 | E30: 312 | F30: 0.0339 | G30: 100 | H30: 0.9364 | I30: Game 6 Stack 65%-70%
A31: Wave 6 | B31: 0.533 | C31: 41 | D31: 0.723 | E31: 341 | F31: 0.0074 | G31: 1100 | H31: 0.2619 | I31: Game 6-7
F33: The set of circumstances -> | G33: =ROUND(D23/LOG(1-H33,1-64%)/1.5/100000,0)*100000 -> 1700000 | H33: =H26*H27*H28*H29*H30*H31*1.1 -> 0.0001795426861
A35: Conclusion
B37: Hands winning process shows a strongly pronounced wave behaviour which appears once in 1,7 million hands dealt
B38: in average (exceeds considered 455 hands distance 3,7 thousand times).
A42: Cyclicity of hand leading on the flop
A44: Leading on a flop according to a stack size
A45: My stack | B45: Flops played | C45: I'm leading on the flop % | E45: I got a better starting hand % | G45: Opponent hits flop %
A46: 0.5 | B46: 67 | C46: 0.5223880597 | D46: =(C46*B46+C47*B47+C48*B48)/(B46+B47+B48) -> 0.5975609756 | E46: =(F46*B46+F47*B47+F48*B48)/(B46+B47+B48) -> 0.5853658537 | F46: 0.5671641791 | G46: 0.2835820896 | H46: =(G46*B46+G47*B47+G48*B48+G49*B49+G50*B50+G51*B51)/SUM(B46:B51) -> 0.2600732601
A47: 0.55 | B47: 44 | C47: 0.6818181818 | F47: 0.5454545455 | G47: 0.1818181818
A48: 0.6 | B48: 53 | C48: 0.6226415094 | F48: 0.641509434 | G48: 0.3018867925
A49: 0.65 | B49: 50 | C49: 0.44 | D49: =(C49*B49+C50*B50+C51*B51)/(B49+B50+B51) -> 0.5321100917 | E49: =(F49*B49+F50*B50+F51*B51)/(B49+B50+B51) -> 0.5779816514 | F49: 0.58 | G49: 0.36
A50: 0.7 | B50: 27 | C50: 0.6666666667 | F50: 0.6666666667 | G50: 0.1111111111
A51: 0.75 | B51: 32 | C51: 0.5625 | F51: 0.5 | G51: 0.21875
A52: 0.8 | B52: 40 | C52: 0.45 | D52: =(C52*B52+C53*B53+C54*B54+C55*B55)/SUM(B52:B55) -> 0.4033149171 | E52: =(F52*B52+F53*B53+F54*B54+F55*B55)/SUM(B52:B55) -> 0.5303867403 | F52: 0.55 | G52: 0.475 | H52: =(G52*B52+G53*B53+G54*B54+G55*B55)/SUM(B52:B55) -> 0.4143646409
A53: 0.85 | B53: 47 | C53: 0.3829787234 | F53: 0.4893617021 | G53: 0.4468085106
A54: 0.9 | B54: 38 | C54: 0.3947368421 | F54: 0.4473684211 | G54: 0.3684210526
A55: 0.95 | B55: 56 | C55: 0.3928571429 | F55: 0.6071428571 | G55: 0.375
A56: Total | B56: 454 | C56: 0.5044052863 | F56: 0.5616740088 | G56: 0.3215859031
A58: Conclusion
B60: In spite of average "I'm leading on the flop" and "opponent hits flop" frequency are
B61: close to it's expected values 50% and 32,4% respectively, dynamics of these factors
B62: demonstrates: a loosing opponent is supported by a software.
A66: Cyclicity of opponent's flop hitting
A69: Blocking of a flop stage
A70: Better starting hand | B70: Flops seen | C70: Opponent hits flop % | D70: Event chances
A71: yes | B71: 256 | C71: 0.379 | D71: 0.0364
A72: no | B72: 175 | C72: 0.274 | D72: 0.0913
A73: Total | B73: 431 | C73: 0.336 | D73: =D71*D72 -> 0.00332332 | E73: =ROUND(B73/LOG(1-D73,1-64%)/1000,0)*1000 -> 132000
A75: I'm on a better hand with a 85%-95% stack
A76: Flops seen | B76: Pair+ on a flop (expected) | C76: Opponent hits flop (fact) | D76: Event chances | E76: Happens once in (flops)
A77: 74 | B77: 0.324 | C77: 0.5135135135 | D77: 0.0006 | E77: 35000
B80: Total distance: | D80: 431 | E80: flops
F81: Statistical estimations
A82: Wave N | B82: Pair+ on the flop chances | C82: Lenth (flops) | D82: Fact (hits flop) | E82: Distance for event to appear | F82: Event chances | G82: Chances of the wave to appear | H82: Game stage
A83: Wave 1 | B83: 0.324 | C83: 12 | D83: 0.667 | E83: =$D$80-SUM($C$83:$C$92)+C83 -> 224 | F83: 0.0156 | G83: 0.2153 | H83: Game 1 Stack 95 %
A84: Wave 2 | C84: 16 | D84: 0.063 | E84: 228 | F84: 0.0165 | G84: 0.5844 | H84: Game 1-2
A85: Wave 3 | C85: 17 | D85: 0.059 | E85: 229 | F85: 0.0118 | G85: 0.4703 | H85: Game 3 Stack 65%-75%
A86: Wave 4 | C86: 37 | D86: 0.514 | E86: 249 | F86: 0.013 | G86: 0.1577 | H86: Game 3 Stack 80%-95%
A87: Wave 5 | C87: 45 | D87: 0.533 | E87: 257 | F87: 0.0029 | G87: 0.0846 | H87: Game 4 Stack 60%-95%
A88: Wave 6 | C88: 12 | D88: 0 | E88: 224 | F88: 0.0091 | G88: 0.4801 | H88: Game 5 Stack 70%-80%
A89: Wave 7 | C89: 11 | D89: 0.818 | E89: 223 | F89: 0.0011 | G89: 0.0999 | H89: Game 5 Stack 80%-85%
A90: Wave 8 | C90: 14 | D90: 0 | E90: 226 | F90: 0.0042 | G90: 0.2628 | H90: Game 6 Stack 55%-60%
A91: Wave 9 | C91: 14 | D91: 0.714 | E91: 226 | F91: 0.0032 | G91: 0.2017 | H91: Game 6 Stack 85%-95%
A92: Wave 10 | C92: 41 | D92: 0.146 | E92: 253 | F92: 0.0085 | G92: 0.0869 | H92: Game 7 Stack 50%-75%
E94: The set of circumstances -> | F94: =ROUND(D80/LOG(1-G94,1-64%)/1.6/100000000,0)*100000000 -> 1300000000 | G94: =G83*G84*G85*G86*G87*G88*G89*G90*G91*G92*1.2 -> 2.092959131e-07
A97: Conclusion
B99: Opponent's flop hitting/missing frequency shows a significant disbalance between two cases - our
B100: starting hand is better then the opponent's one and our starting hand is worse. This way software blocks
B101: ability of a better player to win a heads-up game through playing postflop.
B103: An analysis of the opponent's flop hitting/missing process registered abnormal set of waves with
B104: a probability of appearance close to "twice in 10 million times". This set of circumstances can be registered
B105: once in 1,3 billion flops dealt in average approximately. Such an anomaly leads to a conclusion that the
B106: flop dealing process of Red Star Poker software is not random and is controlled by an intentionaly
B107: prescribed algorythm.
A111: Cyclicity of premium hands dealing (88+; AJ+)
B113: A | C113: K | D113: Q | E113: J | F113: T | G113: 9 | H113: 8 | I113: 7 | J113: 6 | K113: 5 | L113: 4 | M113: 3 | N113: 2
A114: A | B114: AA | C114: AK | D114: AQ | E114: AJ | F114: AT | G114: A9 | H114: A8 | I114: A7 | J114: A6 | K114: A5 | L114: A4 | M114: A3 | N114: A2
A115: K | B115: AKs | C115: KK | D115: KQ | E115: KJ | F115: KT | G115: K9 | H115: K8 | I115: K7 | J115: K6 | K115: K5 | L115: K4 | M115: K3 | N115: K2
A116: Q | B116: AQs | C116: KQs | D116: QQ | E116: QJ | F116: QT | G116: Q9 | H116: Q8 | I116: Q7 | J116: Q6 | K116: Q5 | L116: Q4 | M116: Q3 | N116: Q2
A117: J | B117: AJs | C117: KJs | D117: QJs | E117: JJ | F117: JT | G117: J9 | H117: J8 | I117: J7 | J117: J6 | K117: J5 | L117: J4 | M117: J3 | N117: J2
A118: T | B118: ATs | C118: KTs | D118: QTs | E118: JTs | F118: TT | G118: T9 | H118: T8 | I118: T7 | J118: T6 | K118: T5 | L118: T4 | M118: T3 | N118: T2
A119: 9 | B119: A9s | C119: K9s | D119: Q9s | E119: J9s | F119: T9s | G119: 99 | H119: 98 | I119: 97 | J119: 96 | K119: 95 | L119: 94 | M119: 93 | N119: 92
A120: 8 | B120: A8s | C120: K8s | D120: Q8s | E120: J8s | F120: T8s | G120: 98s | H120: 88 | I120: 87 | J120: 86 | K120: 85 | L120: 84 | M120: 83 | N120: 82
A121: 7 | B121: A7s | C121: K7s | D121: Q7s | E121: J7s | F121: T7s | G121: 97s | H121: 87s | I121: 77 | J121: 76 | K121: 75 | L121: 74 | M121: 73 | N121: 72
A122: 6 | B122: A6s | C122: K6s | D122: Q6s | E122: J6s | F122: T6s | G122: 96s | H122: 86s | I122: 76s | J122: 66 | K122: 65 | L122: 64 | M122: 63 | N122: 62
A123: 5 | B123: A5s | C123: K5s | D123: Q5s | E123: J5s | F123: T5s | G123: 95s | H123: 85s | I123: 75s | J123: 65s | K123: 55 | L123: 54 | M123: 53 | N123: 52
A124: 4 | B124: A4s | C124: K4s | D124: Q4s | E124: J4s | F124: T4s | G124: 94s | H124: 84s | I124: 74s | J124: 64s | K124: 54s | L124: 44 | M124: 43 | N124: 42
A125: 3 | B125: A3s | C125: K3s | D125: Q3s | E125: J3s | F125: T3s | G125: 93s | H125: 83s | I125: 73s | J125: 63s | K125: 53s | L125: 43s | M125: 33 | N125: 32
A126: 2 | B126: A2s | C126: K2s | D126: Q2s | E126: J2s | F126: T2s | G126: 92s | H126: 82s | I126: 72s | J126: 62s | K126: 52s | L126: 42s | M126: 32s | N126: 22
B129: Total distance: | D129: 941 | E129: hands
F130: Statistical estimations
A131: Wave N | B131: 88+;AJ+ to be dealt chances | C131: Lenth (hands) | D131: Fact (been dealt) | E131: Distance for event to appear | F131: Event chances | G131: Wave repeat once in (hands) | H131: Chances of the wave to appear | I131: Game stage
A132: Wave 1 | B132: 0.068 | C132: 47 | D132: 0 | E132: =$D$129-SUM($C$132:$C$136)+C132 -> 857 | F132: 0.0365 | G132: 400 | H132: 0.907 | I132: Game 3 Stack 55%-60%
A133: Wave 2 | C133: 11 | D133: 0.364 | E133: =$D$129-SUM($C$132:$C$136)+C133 -> 821 | F133: 0.0048 | G133: 5700 | H133: 0.1353 | I133: Game 3 Stack 85%-90%
A134: Wave 3 | C134: 51 | D134: 0.137 | E134: =$D$129-SUM($C$132:$C$136)+C134 -> 861 | F134: 0.0562 | G134: 400 | H134: 0.9245 | I134: Game 4 Stack 50%-70%
A135: Wave 4 | C135: 11 | D135: 0.273 | E135: =$D$129-SUM($C$132:$C$136)+C135 -> 821 | F135: 0.0343 | G135: 800 | H135: 0.6472 | I135: Game 5 Stack 95%
A136: Wave 5 | C136: 11 | D136: 0.273 | E136: =$D$129-SUM($C$132:$C$136)+C136 -> 821 | F136: 0.0343 | G136: 800 | H136: 0.6472 | I136: Game 6 Stack 60%-65%
F138: The set of circumstances -> | G138: =ROUND(D129/LOG(1-H138,1-64%)/1.2/1000,0)*1000 -> 15000 | H138: =H132*H133*H134*H135*H136*1.1 -> 0.05227351469
A140: 88+; AJ+ hands dealing frequency analysis accoding to a player's position
A142: Player is on a small blind:
B144: Dealing distance: | D144: 471 | E144: hands
F145: Statistical estimations
A146: Wave N | B146: 88+;AJ+ to be dealt chances | C146: Lenth (hands) | D146: Fact (been dealt) | E146: Distance for event to appear | F146: Event chances | G146: Wave repeat once in (hands) | H146: Chances of the wave to appear | I146: Game stage
A147: Wave 1 | B147: 0.068 | C147: 159 | D147: 0.019 | E147: =$D$144-SUM($C$147:$C$149)+C147 -> 445 | F147: 0.0046 | G147: 5900 | H147: 0.0621 | I147: Game 3-4
A148: Wave 2 | C148: 20 | D148: 0.2 | E148: =$D$144-SUM($C$147:$C$149)+C148 -> 306 | F148: 0.0431 | G148: 200 | H148: 0.7843 | I148: Game 4
A149: Wave 3 | C149: 6 | D149: 0.5 | E149: =$D$144-SUM($C$147:$C$149)+C149 -> 292 | F149: 0.0054 | G149: 500 | H149: 0.4767 | I149: Game 5
F151: The set of circumstances -> | G151: =ROUND(D144/LOG(1-H151,1-64%)/1.5/1000,0)*1000 -> 13000 | H151: =H147*H148*H149*1.05 -> 0.02437857219
A153: Player is on a big blind:
B155: Total distance: | D155: 470 | E155: hands
F156: Statistical estimations
A157: Wave N | B157: 88+;AJ+ to be dealt chances | C157: Lenth (hands) | D157: Fact (been dealt) | E157: Distance for event to appear | F157: Event chances | G157: Wave repeat once in (hands) | H157: Chances of the wave to appear | I157: Game stage
A158: Wave 1 | B158: 0.068 | C158: 46 | D158: 0.217 | E158: =$D$155-SUM($C$158:$C$163)+C158 -> 296 | F158: 0.0008885836036 | G158: 10000 | H158: 0.0243 | I158: Game 3
A159: Wave 2 | C159: 12 | D159: 0.333 | E159: 262 | F159: 0.0068 | G159: 600 | H159: 0.3412 | I159: Game 4
A160: Wave 3 | C160: 78 | D160: 0 | E160: 328 | F160: 0.0041 | G160: 3700 | H160: 0.0714 | I160: Game 4-5
A161: Wave 4 | C161: 40 | D161: 0 | E161: 290 | F161: 0.0598 | G161: 200 | H161: 0.7263 | I161: Game 5-6
A162: Wave 5 | C162: 28 | D162: 0.179 | E162: 278 | F162: 0.0384 | G162: 800 | H162: 0.2771 | I162: Game 6
A163: Wave 6 | C163: 16 | D163: 0.25 | E163: 266 | F163: 0.0201 | G163: 300 | H163: 0.5697 | I163: Game 7
F165: The set of circumstances -> | G165: =ROUND(D155/LOG(1-H165,1-64%)/1.5/100000,0)*100000 -> 4300000 | H165: =H158*H159*H160*H161*H162*H163*1.1 -> 7.4662922e-05
A167: Opponent is on a big blind:
B169: Total distance: | D169: 469 | E169: hands
F170: Statistical estimations
A171: Wave N | B171: 88+;AJ+ to be dealt chances | C171: Lenth (hands) | D171: Fact (been dealt) | E171: Distance for event to appear | F171: Event chances | G171: Wave repeat once in (hands) | H171: Chances of the wave to appear | I171: Game stage
A172: Wave 1 | B172: 0.068 | C172: 11 | D172: 0.364 | E172: =$D$169-SUM($C$172:$C$173)+C172 -> 366 | F172: 0.0048 | G172: 5800 | H172: 0.059 | I172: Game 3
A173: Wave 2 | C173: 103 | D173: 0.01 | E173: =$D$169-SUM($C$172:$C$173)+C173 -> 458 | F173: 0.006 | G173: 3300 | H173: 0.1133 | I173: Game 6-7
F175: The set of circumstances -> | G175: =ROUND(D169/LOG(1-H175,1-64%)/1.3/1000,0)*1000 -> 53000 | H175: =H172*H173*1.03 -> 0.006885241
A177: Conclusion
B179: An analysis of premium hands dealing process according to players positions registered abnormal set of waves with
B180: a probability of appearance close to "once in 100 million times". This set of circumstances can be registered once in
B181: 51 billion hands dealt approximately. Such an anomaly leads to a conclusion that the | I181: =ROUND(D129/LOG(1-J181,1-64%)/1.5/100000000,0)*100000000 -> 51100000000 | J181: =H151*H165*H175 -> 1.253234653e-08
B182: hands dealing process of Red Star Poker software is not random and is controlled by an intentionaly prescribed algorythm.
A186: The final set of circumstances registered
B188: All the cards visible distance : | E188: 469 | F188: hands (flops)
E190: Wave effect chances | F190: Happenes once in (hands)
B191: Player is on a small blind: | E191: =H151 -> 0.02437857219 | F191: =G151 -> 13000
B193: Opponent is on a big blind: | E193: =H175 -> 0.006885241 | F193: =G175 -> 53000
B195: Opponent's flop hitting/missing: | E195: =G94 -> 2.092959131e-07 | F195: =F94 -> 1300000000
B197: The set of circumstances (final): | E197: =E191*E193*E195 -> 3.513080976e-11 | G197: chances
D198: expected once in | E198: =ROUND(E188/LOG(1-E197,1-64%)/1.6/100000000000,0)*100000000000 -> 8500000000000 | G198: hands
A200: Conclusions
B202: A probability of being involved in such a set of circumstances (means to observe all the three independent cards dealing
B203: anomalies simultaneously) on a distance of 469 hands played is equal to 3,5 * 10^(-9) %. This set of circumstances is expected
B204: to be observed once in 8,5 * 10^12 hands distance, or, rephrasing, extremely rare.
B206: In the light of all the described dependencies in the attached video (escaping low percentage negative all-ins by
B207: folding "in time" of premium hands preflop, then going all-in effectively having less valuable hand on a regular basis)
B208: we can make a reasonable conclusion that:
B210: 1. There is a dependence between the cards dealing process of Red Star Poker software and game
C211: situations which submits to any algorythm or algorythms.
B213: 2. There are nonrandom algorythms of cards dealing to players, including dealing of cards on each
C214: stage of the game - preflop, flop, turn, river.
B216: 3. The software controls a profitability of players.
B218: 4. Influence of players on the game result on a long distance is minimal or is extremely limited
C219: by the software.
A223: List of statistical tests
B226: The following statistical tests and factor analysis we conducted:
B228: 1. Cyclicity of player's starting hand dealing
B229: 2. Cyclicity of opponent's starting hand dealing
B230: 3. Quality of hands been dealt to the player on SB comparing to BB
B231: 4. Cyclicity and comparison to theoretical values of having better starting hand comparing to opponent's starting hand
B232: 5. Cyclicity and comparison to theoretical values of player's hand winning on a showdown (leading on a river)
B233: 6. Cyclicity of leading of the player on the flop
B234: 7. Frequency of "useless", "usefull" and "trap" river card for the player
B235: 8. Dependency of hitting the flop by the opponent on the player having a better/worse starting hand
B236: 9. Cyclicity and comparison to theoretical values of hitting/missing the flop by the opponent
B237: 10. Cyclicity and comparison to theoretical values of hitting two pairs or better on the flop by the opponent
B239: Categories for the analysis: | E239: Factors to analyse:
B241: a) Starting hand class | E241: a) Flop hitting frequency for the opponent
B242: b) Player's stack level | E242: b) Hand winning frequency for the player
B243: c) Big blind level | E243: c) The player got a better starting hand %
B244: d) Game ID | E244: d) Wave effect probabilities
A249: Demonstrating games (video set)
B252: List of videos illustrating a strategy of the player according to software algorythms:
B254: Game type: Double or nothing Hyper Turbo | F254: Limit: 0,5 Euro
B256: Date | C256: Start time | D256: Current EV ITM | E256: Description
B257: 2022-08-28 | C257: 12:22:00 | D257: 0.67 | E257: An example of traps escaping after a highly profitable all-in
B258: 2022-08-28 | C258: 12:22:00 | D258: 0.67 | E258: An example of push-fold hands got dominated by the same player (software luck-factor difference)
C259: 12:40:00
B260: 2022-09-05 | C260: 20:09:00 | D260: 0.64 | E260: An example of preflop playing on "Ace + x" type of hand
B261: 2022-08-28 | C261: 19:04:00 | D261: 0.52 | E261: An example of traps escaping after a highly profitable previous tournament
A265: The list of gambling suprvision authorities to notify
A267: Authority name | C267: Email | E267: Official website | G267: Country
A268: Curaçao eGaming | C268: info@curacao-egaming.com | E268: curacao-egaming.com | G268: Curaçao
A269: UK Gambling Commission | C269: info@gamblingcommission.gov.uk | E269: gamblingcommission.gov.uk | G269: United Kingdom
A270: The Netherlands Gambling Authority | C270: info@kansspelautoriteit.nl | E270: kansspelautoriteit.nl | G270: Netherlands
A271: FTS RF | C271: - | E271: nalog.gov.ru | G271: Russian Federation
A272: Malta Gaming Authority | C272: info.mga@mga.org.mt | E272: mga.org.mt | G272: Malta
A273: Joint Gambling Authority | C273: https://www.gluecksspiel-behoerde.de/de/kontakt#kontaktformular | E273: gluecksspiel-behoerde.de | G273: Germany
A274: Ministry of Finance | C274: podatelna@mfcr.cz | E274: mfcr.cz | G274: Czech Republic
A275: The Customs and Monopolies Agency | C275: assistenza-giochi@sogei.it | E275: adm.gov.it | G275: Italy
A276: Nevada Gaming Control Board | C276: gcbresch@gcb.nv.gov | E276: gaming.nv.gov | G276: USA (Nevada)
A277: The Swiss Gambling Supervisory Authority | C277: info@gespa.ch | E277: gespa.ch | G277: Switzerland

Sheet HM2 sit out hands (hidden)
A1: info | B1: game | C1: dealing
A2: Dealt to Hero [ 7s Ad ] | B2: game 1 - 25 hands | C2: 1
A3: ** Dealing Flop ** [ Tc, 5s, Qd ] | B3: game 1 - 25 hands | C3: 2
A4: ** Dealing Turn ** [ Jc ] | B4: game 1 - 25 hands | C4: 3
A5: ** Dealing River ** [ Kh ] | B5: game 1 - 25 hands | C5: 4
A6: Dealt to Hero [ 3d 8h ] | B6: game 1 - 25 hands | C6: 1
A7: ** Dealing Flop ** [ 7d, Th, 3h ] | B7: game 1 - 25 hands | C7: 2
A8: ** Dealing Turn ** [ 2h ] | B8: game 1 - 25 hands | C8: 3
A9: ** Dealing River ** [ Tc ] | B9: game 1 - 25 hands | C9: 4
A10: Dealt to Hero [ 3c 2s ] | B10: game 1 - 25 hands | C10: 1
A11: ** Dealing Flop ** [ 8s, 5d, Qc ] | B11: game 1 - 25 hands | C11: 2
A12: ** Dealing Turn ** [ Ks ] | B12: game 1 - 25 hands | C12: 3
A13: ** Dealing River ** [ 4h ] | B13: game 1 - 25 hands | C13: 4
A14: Dealt to Hero [ 9c 4h ] | B14: game 1 - 25 hands | C14: 1
A15: ** Dealing Flop ** [ 8d, 9d, 8h ] | B15: game 1 - 25 hands | C15: 2
A16: ** Dealing Turn ** [ Td ] | B16: game 1 - 25 hands | C16: 3
A17: ** Dealing River ** [ 6d ] | B17: game 1 - 25 hands | C17: 4
A18: Dealt to Hero [ Ad 3h ] | B18: game 1 - 25 hands | C18: 1
A19: ** Dealing Flop ** [ Jh, 4c, 8s ] | B19: game 1 - 25 hands | C19: 2
A20: ** Dealing Turn ** [ 9h ] | B20: game 1 - 25 hands | C20: 3
A21: ** Dealing River ** [ 2c ] | B21: game 1 - 25 hands | C21: 4
A22: Dealt to Hero [ 7h 5h ] | B22: game 1 - 25 hands | C22: 1
A23: ** Dealing Flop ** [ 6s, Kc, As ] | B23: game 1 - 25 hands | C23: 2
A24: ** Dealing Turn ** [ 4d ] | B24: game 1 - 25 hands | C24: 3
A25: ** Dealing River ** [ 5c ] | B25: game 1 - 25 hands | C25: 4
A26: Dealt to Hero [ Qd 6h ] | B26: game 1 - 25 hands | C26: 1
A27: ** Dealing Flop ** [ 2h, 7c, Qs ] | B27: game 1 - 25 hands | C27: 2
A28: ** Dealing Turn ** [ Kd ] | B28: game 1 - 25 hands | C28: 3
A29: ** Dealing River ** [ 2c ] | B29: game 1 - 25 hands | C29: 4
A30: Dealt to Hero [ 2h 2d ] | B30: game 1 - 25 hands | C30: 1
A31: ** Dealing Flop ** [ 4s, Jh, 8c ] | B31: game 1 - 25 hands | C31: 2
A32: ** Dealing Turn ** [ 6d ] | B32: game 1 - 25 hands | C32: 3
A33: ** Dealing River ** [ Kh ] | B33: game 1 - 25 hands | C33: 4
A34: Dealt to Hero [ 9s Ah ] | B34: game 1 - 25 hands | C34: 1
A35: ** Dealing Flop ** [ 5d, 3d, 8h ] | B35: game 1 - 25 hands | C35: 2
A36: ** Dealing Turn ** [ 2h ] | B36: game 1 - 25 hands | C36: 3
A37: ** Dealing River ** [ 4s ] | B37: game 1 - 25 hands | C37: 4
A38: Dealt to Hero [ 6h 3c ] | B38: game 1 - 25 hands | C38: 1
A39: ** Dealing Flop ** [ 6c, 8s, Th ] | B39: game 1 - 25 hands | C39: 2
A40: ** Dealing Turn ** [ 2c ] | B40: game 1 - 25 hands | C40: 3
A41: ** Dealing River ** [ 7s ] | B41: game 1 - 25 hands | C41: 4
A42: Dealt to Hero [ 7h 8h ] | B42: game 1 - 25 hands | C42: 1
A43: ** Dealing Flop ** [ Kh, Kd, 6c ] | B43: game 1 - 25 hands | C43: 2
A44: ** Dealing Turn ** [ 8s ] | B44: game 1 - 25 hands | C44: 3
A45: ** Dealing River ** [ As ] | B45: game 1 - 25 hands | C45: 4
A46: Dealt to Hero [ 6d 6s ] | B46: game 1 - 25 hands | C46: 1
A47: ** Dealing Flop ** [ Jd, 8c, Qd ] | B47: game 1 - 25 hands | C47: 2
A48: ** Dealing Turn ** [ Ad ] | B48: game 1 - 25 hands | C48: 3
A49: ** Dealing River ** [ Kc ] | B49: game 1 - 25 hands | C49: 4
A50: Dealt to Hero [ 6c 9c ] | B50: game 1 - 25 hands | C50: 1
A51: ** Dealing Flop ** [ Ah, 4h, 4s ] | B51: game 1 - 25 hands | C51: 2
A52: ** Dealing Turn ** [ Th ] | B52: game 1 - 25 hands | C52: 3
A53: ** Dealing River ** [ 5h ] | B53: game 1 - 25 hands | C53: 4
A54: Dealt to Hero [ Jc Kh ] | B54: game 1 - 25 hands | C54: 1
A55: ** Dealing Flop ** [ 2d, 2h, Td ] | B55: game 1 - 25 hands | C55: 2
A56: ** Dealing Turn ** [ Qd ] | B56: game 1 - 25 hands | C56: 3
A57: ** Dealing River ** [ 4d ] | B57: game 1 - 25 hands | C57: 4
A58: Dealt to Hero [ 8h 3d ] | B58: game 1 - 25 hands | C58: 1
A59: ** Dealing Flop ** [ 5s, Jd, 6c ] | B59: game 1 - 25 hands | C59: 2
A60: ** Dealing Turn ** [ 8d ] | B60: game 1 - 25 hands | C60: 3
A61: ** Dealing River ** [ Kc ] | B61: game 1 - 25 hands | C61: 4
A62: Dealt to Hero [ Qh Js ] | B62: game 1 - 25 hands | C62: 1
A63: ** Dealing Flop ** [ Ad, 4s, 6s ] | B63: game 1 - 25 hands | C63: 2
A64: ** Dealing Turn ** [ 6c ] | B64: game 1 - 25 hands | C64: 3
A65: ** Dealing River ** [ 4h ] | B65: game 1 - 25 hands | C65: 4
A66: Dealt to Hero [ Jh 5c ] | B66: game 1 - 25 hands | C66: 1
A67: ** Dealing Flop ** [ Kc, 8d, Ah ] | B67: game 1 - 25 hands | C67: 2
A68: ** Dealing Turn ** [ 3d ] | B68: game 1 - 25 hands | C68: 3
A69: ** Dealing River ** [ 4c ] | B69: game 1 - 25 hands | C69: 4
A70: Dealt to Hero [ 5s 5d ] | B70: game 1 - 25 hands | C70: 1
A71: ** Dealing Flop ** [ 3d, 4c, 3s ] | B71: game 1 - 25 hands | C71: 2
A72: ** Dealing Turn ** [ Kc ] | B72: game 1 - 25 hands | C72: 3
A73: ** Dealing River ** [ As ] | B73: game 1 - 25 hands | C73: 4
A74: Dealt to Hero [ 8d Qh ] | B74: game 1 - 25 hands | C74: 1
A75: ** Dealing Flop ** [ 5h, 8s, Ts ] | B75: game 1 - 25 hands | C75: 2
A76: ** Dealing Turn ** [ Kh ] | B76: game 1 - 25 hands | C76: 3
A77: ** Dealing River ** [ 8h ] | B77: game 1 - 25 hands | C77: 4
A78: Dealt to Hero [ Ks 3s ] | B78: game 1 - 25 hands | C78: 1
A79: ** Dealing Flop ** [ 4d, Kd, 7s ] | B79: game 1 - 25 hands | C79: 2
A80: ** Dealing Turn ** [ 9s ] | B80: game 1 - 25 hands | C80: 3
A81: ** Dealing River ** [ Jd ] | B81: game 1 - 25 hands | C81: 4
A82: Dealt to Hero [ Ad 5d ] | B82: game 1 - 25 hands | C82: 1
A83: ** Dealing Flop ** [ Qc, Jh, 2s ] | B83: game 1 - 25 hands | C83: 2
A84: ** Dealing Turn ** [ 8s ] | B84: game 1 - 25 hands | C84: 3
A85: ** Dealing River ** [ 6h ] | B85: game 1 - 25 hands | C85: 4
A86: Dealt to Hero [ Kh 5h ] | B86: game 1 - 25 hands | C86: 1
A87: ** Dealing Flop ** [ 4s, 8d, 7s ] | B87: game 1 - 25 hands | C87: 2
A88: ** Dealing Turn ** [ Jh ] | B88: game 1 - 25 hands | C88: 3
A89: ** Dealing River ** [ 2s ] | B89: game 1 - 25 hands | C89: 4
A90: Dealt to Hero [ 6s 5s ] | B90: game 1 - 25 hands | C90: 1
A91: ** Dealing Flop ** [ Kh, 4c, 8h ] | B91: game 1 - 25 hands | C91: 2
A92: ** Dealing Turn ** [ Qd ] | B92: game 1 - 25 hands | C92: 3
A93: ** Dealing River ** [ Jh ] | B93: game 1 - 25 hands | C93: 4
A94: Dealt to Hero [ 9h Qh ] | B94: game 1 - 25 hands | C94: 1
A95: ** Dealing Flop ** [ 2s, Jd, 6c ] | B95: game 1 - 25 hands | C95: 2
A96: ** Dealing Turn ** [ 4d ] | B96: game 1 - 25 hands | C96: 3
A97: ** Dealing River ** [ Tc ] | B97: game 1 - 25 hands | C97: 4
A98: Dealt to Hero [ Qd Jc ] | B98: game 1 - 25 hands | C98: 1
A99: ** Dealing Flop ** [ 4c, 9c, 6d ] | B99: game 1 - 25 hands | C99: 2
A100: ** Dealing Turn ** [ 7d ] | B100: game 1 - 25 hands | C100: 3
A101: ** Dealing River ** [ Ah ] | B101: game 1 - 25 hands | C101: 4
A102: Dealt to Hero [ Qd 6h ] | B102: game 2 - 20 hands | C102: 1
A103: ** Dealing Flop ** [ Jh, Kd, 9c ] | B103: game 2 - 20 hands | C103: 2
A104: ** Dealing Turn ** [ 7s ] | B104: game 2 - 20 hands | C104: 3
A105: ** Dealing River ** [ 6c ] | B105: game 2 - 20 hands | C105: 4
A106: Dealt to Hero [ 3h 3s ] | B106: game 2 - 20 hands | C106: 1
A107: ** Dealing Flop ** [ 8c, 7h, 4d ] | B107: game 2 - 20 hands | C107: 2
A108: ** Dealing Turn ** [ Td ] | B108: game 2 - 20 hands | C108: 3
A109: ** Dealing River ** [ 6d ] | B109: game 2 - 20 hands | C109: 4
A110: Dealt to Hero [ 5h Td ] | B110: game 2 - 20 hands | C110: 1
A111: ** Dealing Flop ** [ 2s, Tc, Jc ] | B111: game 2 - 20 hands | C111: 2
A112: ** Dealing Turn ** [ 2c ] | B112: game 2 - 20 hands | C112: 3
A113: ** Dealing River ** [ 7c ] | B113: game 2 - 20 hands | C113: 4
A114: Dealt to Hero [ Ts Ks ] | B114: game 2 - 20 hands | C114: 1
A115: ** Dealing Flop ** [ 6c, Qc, 8s ] | B115: game 2 - 20 hands | C115: 2
A116: ** Dealing Turn ** [ 9s ] | B116: game 2 - 20 hands | C116: 3
A117: ** Dealing River ** [ 8d ] | B117: game 2 - 20 hands | C117: 4
A118: Dealt to Hero [ As 9h ] | B118: game 2 - 20 hands | C118: 1
A119: ** Dealing Flop ** [ 8d, 3s, 6h ] | B119: game 2 - 20 hands | C119: 2
A120: ** Dealing Turn ** [ Ks ] | B120: game 2 - 20 hands | C120: 3
A121: ** Dealing River ** [ 6d ] | B121: game 2 - 20 hands | C121: 4
A122: Dealt to Hero [ 5c 9d ] | B122: game 2 - 20 hands | C122: 1
A123: ** Dealing Flop ** [ 6c, 9s, 5d ] | B123: game 2 - 20 hands | C123: 2
A124: ** Dealing Turn ** [ 4s ] | B124: game 2 - 20 hands | C124: 3
A125: ** Dealing River ** [ 3d ] | B125: game 2 - 20 hands | C125: 4
A126: Dealt to Hero [ Th Kh ] | B126: game 2 - 20 hands | C126: 1
A127: ** Dealing Flop ** [ 8d, 3c, Qs ] | B127: game 2 - 20 hands | C127: 2
A128: ** Dealing Turn ** [ 2h ] | B128: game 2 - 20 hands | C128: 3
A129: ** Dealing River ** [ 3d ] | B129: game 2 - 20 hands | C129: 4
A130: Dealt to Hero [ Ad Kc ] | B130: game 2 - 20 hands | C130: 1
A131: ** Dealing Flop ** [ 9d, Tc, 3d ] | B131: game 2 - 20 hands | C131: 2
A132: ** Dealing Turn ** [ 6h ] | B132: game 2 - 20 hands | C132: 3
A133: ** Dealing River ** [ Qd ] | B133: game 2 - 20 hands | C133: 4
A134: Dealt to Hero [ 8s 7d ] | B134: game 2 - 20 hands | C134: 1
A135: ** Dealing Flop ** [ Kc, Jc, Js ] | B135: game 2 - 20 hands | C135: 2
A136: ** Dealing Turn ** [ 2h ] | B136: game 2 - 20 hands | C136: 3
A137: ** Dealing River ** [ 5h ] | B137: game 2 - 20 hands | C137: 4
A138: Dealt to Hero [ 7c 3d ] | B138: game 2 - 20 hands | C138: 1
A139: ** Dealing Flop ** [ 6h, 8h, 7d ] | B139: game 2 - 20 hands | C139: 2
A140: ** Dealing Turn ** [ 6s ] | B140: game 2 - 20 hands | C140: 3
A141: ** Dealing River ** [ 5s ] | B141: game 2 - 20 hands | C141: 4
A142: Dealt to Hero [ As 2d ] | B142: game 2 - 20 hands | C142: 1
A143: ** Dealing Flop ** [ Jh, 4h, Tc ] | B143: game 2 - 20 hands | C143: 2
A144: ** Dealing Turn ** [ Td ] | B144: game 2 - 20 hands | C144: 3
A145: ** Dealing River ** [ Kh ] | B145: game 2 - 20 hands | C145: 4
A146: Dealt to Hero [ 7d Kd ] | B146: game 2 - 20 hands | C146: 1
A147: ** Dealing Flop ** [ Js, Qs, 6c ] | B147: game 2 - 20 hands | C147: 2
A148: ** Dealing Turn ** [ Qh ] | B148: game 2 - 20 hands | C148: 3
A149: ** Dealing River ** [ 5s ] | B149: game 2 - 20 hands | C149: 4
A150: Dealt to Hero [ Jd Qh ] | B150: game 2 - 20 hands | C150: 1
A151: ** Dealing Flop ** [ Tc, Td, 3h ] | B151: game 2 - 20 hands | C151: 2
A152: ** Dealing Turn ** [ 9c ] | B152: game 2 - 20 hands | C152: 3
A153: ** Dealing River ** [ Th ] | B153: game 2 - 20 hands | C153: 4
A154: Dealt to Hero [ 8d Kh ] | B154: game 2 - 20 hands | C154: 1
A155: ** Dealing Flop ** [ Qc, 3c, Js ] | B155: game 2 - 20 hands | C155: 2
A156: ** Dealing Turn ** [ 2d ] | B156: game 2 - 20 hands | C156: 3
A157: ** Dealing River ** [ 4d ] | B157: game 2 - 20 hands | C157: 4
A158: Dealt to Hero [ 6h Th ] | B158: game 2 - 20 hands | C158: 1
A159: ** Dealing Flop ** [ Jh, 7s, 7c ] | B159: game 2 - 20 hands | C159: 2
A160: ** Dealing Turn ** [ 5c ] | B160: game 2 - 20 hands | C160: 3
A161: ** Dealing River ** [ Td ] | B161: game 2 - 20 hands | C161: 4
A162: Dealt to Hero [ 9c 4c ] | B162: game 2 - 20 hands | C162: 1
A163: ** Dealing Flop ** [ Js, 5c, 8s ] | B163: game 2 - 20 hands | C163: 2
A164: ** Dealing Turn ** [ Qc ] | B164: game 2 - 20 hands | C164: 3
A165: ** Dealing River ** [ 4h ] | B165: game 2 - 20 hands | C165: 4
A166: Dealt to Hero [ 4s 3d ] | B166: game 2 - 20 hands | C166: 1
A167: ** Dealing Flop ** [ Qd, 6d, Kh ] | B167: game 2 - 20 hands | C167: 2
A168: ** Dealing Turn ** [ 7d ] | B168: game 2 - 20 hands | C168: 3
A169: ** Dealing River ** [ 9d ] | B169: game 2 - 20 hands | C169: 4
A170: Dealt to Hero [ 9s Qd ] | B170: game 2 - 20 hands | C170: 1
A171: ** Dealing Flop ** [ 3c, 6c, 3s ] | B171: game 2 - 20 hands | C171: 2
A172: ** Dealing Turn ** [ Kh ] | B172: game 2 - 20 hands | C172: 3
A173: ** Dealing River ** [ Ts ] | B173: game 2 - 20 hands | C173: 4
A174: Dealt to Hero [ Ac Jh ] | B174: game 2 - 20 hands | C174: 1
A175: ** Dealing Flop ** [ 4d, Jc, Js ] | B175: game 2 - 20 hands | C175: 2
A176: ** Dealing Turn ** [ As ] | B176: game 2 - 20 hands | C176: 3
A177: ** Dealing River ** [ 2s ] | B177: game 2 - 20 hands | C177: 4
A178: Dealt to Hero [ 3h Kc ] | B178: game 2 - 20 hands | C178: 1
A179: ** Dealing Flop ** [ 4h, 7h, 9d ] | B179: game 2 - 20 hands | C179: 2
A180: ** Dealing Turn ** [ 8s ] | B180: game 2 - 20 hands | C180: 3
A181: ** Dealing River ** [ 3s ] | B181: game 2 - 20 hands | C181: 4
A182: Dealt to Hero [ 6s 4s ] | B182: game 3 - 132 | C182: 1
A183: ** Dealing Flop ** [ Qd, 2d, 7c ] | B183: game 3 - 132 | C183: 2
A184: ** Dealing Turn ** [ 4c ] | B184: game 3 - 132 | C184: 3
A185: ** Dealing River ** [ Kc ] | B185: game 3 - 132 | C185: 4
A186: Dealt to Hero [ Kd 7d ] | B186: game 3 - 132 | C186: 1
A187: ** Dealing Flop ** [ 6d, 6c, Jd ] | B187: game 3 - 132 | C187: 2
A188: ** Dealing Turn ** [ Td ] | B188: game 3 - 132 | C188: 3
A189: ** Dealing River ** [ Ah ] | B189: game 3 - 132 | C189: 4
A190: Dealt to Hero [ 2h 3s ] | B190: game 3 - 132 | C190: 1
A191: ** Dealing Flop ** [ Ac, 9s, 2c ] | B191: game 3 - 132 | C191: 2
A192: ** Dealing Turn ** [ Ad ] | B192: game 3 - 132 | C192: 3
A193: ** Dealing River ** [ Kh ] | B193: game 3 - 132 | C193: 4
A194: Dealt to Hero [ Ah 3s ] | B194: game 3 - 132 | C194: 1
A195: ** Dealing Flop ** [ 4h, Ks, 2s ] | B195: game 3 - 132 | C195: 2
A196: ** Dealing Turn ** [ 9s ] | B196: game 3 - 132 | C196: 3
A197: ** Dealing River ** [ 8c ] | B197: game 3 - 132 | C197: 4
A198: Dealt to Hero [ 9c Qc ] | B198: game 3 - 132 | C198: 1
A199: ** Dealing Flop ** [ 3s, 6d, Qd ] | B199: game 3 - 132 | C199: 2
A200: ** Dealing Turn ** [ 7d ] | B200: game 3 - 132 | C200: 3
... 1657 more rows
